Cogmind - Beta 16.1 @@@ ROGUE MODE // 2026.02.09 @ 05:52:33 Player: H3-MLN Result: Assimilated 0b10! Performance ------------- Evolutions (9) 4500 Regions Visited (34) 6800 Robots Destroyed (265) 1325 Value Destroyed (15733) 15733 Prototype IDs (93) 1860 Alien Tech Used (0) 0 Bonus (45069) 45069 TOTAL SCORE: 75287 Bonus ------- High Alert Combat Kills 2309 Follower Combat Kills 7995 Hunted by Unchained 1000 Destroyed Unchained 1000 Entered Garrisons 2200 Used RIF Installer 6500 Network Hubs Disabled 800 Aligned with FarCom 300 Built Enhanced Grunts 300 A7 Reached Mainframe 300 Met R17 at Cetus 500 Met R17 at Research 2000 Met MAIN.C 5000 Destroyed MAIN.C Shell 5000 Destroyed MAIN.C 10000 Used 0b10 Conduit 2000 Win 3000 Friendly Fire -5135 Cogmind --------- Core Integrity 1480/1600 Matter 164/300 Energy 145/225 System Corruption 0% Temperature Cool (36) Movement Hovering (33) Location 0b10 Command Parts ------- > --- POWER (2) -------- Compact Particle Reactor Light Quantum Reactor > --- PROPULSION (7) --- Improved Gyrokinetic Inverter Improved Linear Gravjet Experimental Gyrokinetic Inverter Cooled Linear Gravjet Combat Linear Gravjet Combat Linear Gravjet Combat Linear Gravjet > --- UTILITY (14) ----- Advanced Cooling System High-capacity Storage Unit Quantum Shading Machine Spectral Analyzer Experimental Core Analyzer Experimental Utility Shielding Advanced Powered Armor Relay Coupler [NC] (8) Relay Coupler [C] (3) Relay Coupler [Sentry] (17) Relay Coupler [Hunter] (1) Relay Coupler [Heavy] (8) Relay Coupler [Proto] (16) Improved Corruption Screen > --- WEAPON (2) ------- Enhanced Hardcell Cannon > --- INVENTORY (20) --- Light Quantum Reactor Improved Energy Well (400) Matter Compressor (250) Centrium Medium Armor Plating Advanced Powered Armor Graphene Brace Advanced Remote Shield Relay Coupler [C] (38) Relay Coupler [Proto] (21) Trap Extractor (4/4 EM Surge) Thief Drone Bay (2/3) Enhanced Nova Cannon Hellfire Missile Launcher Advanced Remote Datajack Segregator Peak State ------------ > --- POWER ------------ Compact Particle Reactor Light Quantum Reactor > --- PROPULSION ------- Antigrav Array Experimental Gyrokinetic Inverter Cooled Linear Gravjet Combat Linear Gravjet Combat Linear Gravjet Combat Linear Gravjet > --- UTILITY ---------- Advanced Cooling System High-capacity Storage Unit Quantum Shading Machine Spectral Analyzer Experimental Core Analyzer Experimental Utility Shielding Advanced Powered Armor Relay Coupler [NC] Relay Coupler [C] Relay Coupler [Sentry] Relay Coupler [Hunter] Relay Coupler [Heavy] Relay Coupler [Proto] Improved Corruption Screen > --- WEAPON ----------- Enhanced Nova Cannon Advanced Remote Datajack > --- INVENTORY -------- Light Quantum Reactor Improved Gyrokinetic Inverter Improved Linear Gravjet Improved Energy Well Matter Compressor Centrium Medium Armor Plating Advanced Powered Armor Graphene Brace Advanced Remote Shield Relay Coupler [C] Relay Coupler [Proto] Trap Extractor Thief Drone Bay Enhanced Hardcell Cannon Hellfire Missile Launcher Segregator [Rating: 197] Favorites ----------- Power Light Quantum Reactor Engine Light Ion Engine Power Core Light Nuclear Core Reactor Light Quantum Reactor Propulsion Armored Huge Wheel Treads Advanced Treads Leg Aluminum Leg Wheel Armored Huge Wheel Hover Unit Combat Linear Gravjet Flight Unit Flying Fortress v7 Utility Relay Coupler [Grunt] Device Graphene Brace Storage Large Storage Unit Processor Spectral Analyzer Hackware Relay Coupler [Grunt] Protection Centrium Medium Armor Plating Weapon Power Sword Energy Gun Wave Gun Energy Cannon Enhanced Nova Cannon Ballistic Gun Autogun Ballistic Cannon Enhanced Hardcell Cannon Launcher Mini Grenade Launcher Special Weapon Advanced Remote Datajack Slashing Weapon Power Sword Special Melee Weapon Datajack Build | -11 -10 -10 -10 -9 -8 -8 -8 -8 -7 -7 -7 -7 -6 -6 -6 -6 -6 -6 -6 -6 -5 -5 -4 -4 -4 -4 -3 -3 -2 -2 -2 -2 -1 -1 ------- Run | Yrd Mat Min Exi Min Mat Gar Mat Gar Fac Gar Fac Gar Fac Was Fac Ext Cet Arc Hub Gar Fac Gar Fac Gar Fac Gar Res Gar Res Gar Res Gar Acc Com Slots Evolved 18 | . . . . . 4 . . . 2 . . . 2 . . . . . . . 2 . 2 . . . 2 . 2 . . . 2 . Power 1 | . . . . . . . . . . . . . . . . . . . . . 1 . . . . . . . . . . . . . Propulsion 5 | . . . . . 2 . . . . . . . . . . . . . . . 1 . 1 . . . . . 1 . . . . . Utility 12 | . . . . . 2 . . . 2 . . . 2 . . . . . . . . . 1 . . . 2 . 1 . . . 2 . Weapon . | . . . . . . . . . . . . . . . . . . . . . . . . . . . . . . . . . . . Parts Attached 268 | 6 7 4 2 3 26 12 . 16 . 11 1 11 15 . 3 3 7 7 2 3 12 6 7 16 13 9 9 6 2 8 11 11 9 10 Power 33 | 1 2 . . . 2 1 . 2 . 2 . . 2 . . 1 1 1 . 1 3 . 1 2 2 3 1 2 . . . 1 2 . Engine 15 | 1 2 . . . 1 1 . 1 . 2 . . 2 . . 1 1 1 . . 1 . 1 . . . . . . . . . . . Core 6 | . . . . . 1 . . 1 . . . . . . . . . . . 1 2 . . . 1 . . . . . . . . . Reactor 12 | . . . . . . . . . . . . . . . . . . . . . . . . 2 1 3 1 2 . . . 1 2 . Propulsion 48 | 2 . 1 1 . 9 2 . 1 . 1 . 3 6 . . . 1 1 . . 1 1 1 4 6 . . 1 . . . 2 1 3 Treads 11 | 1 . 1 . . 3 . . . . . . 1 1 . . . 1 . . . . . . 1 2 . . . . . . . . . Leg 3 | . . . . . 3 . . . . . . . . . . . . . . . . . . . . . . . . . . . . . Wheel 14 | 1 . . 1 . 3 2 . 1 . 1 . . 4 . . . . . . . . . . 1 . . . . . . . . . . Hover 16 | . . . . . . . . . . . . 2 . . . . . 1 . . . . . 2 4 . . 1 . . . 2 1 3 Flight 4 | . . . . . . . . . . . . . 1 . . . . . . . 1 1 1 . . . . . . . . . . . Utility 136 | 1 3 1 . 2 11 3 . 11 . 4 1 4 5 . 2 2 3 5 2 2 5 4 5 8 3 5 7 3 2 7 8 6 5 6 Device 31 | 1 . . . 2 2 1 . 4 . 1 . 1 . . . . . 2 . . 2 1 4 2 2 1 3 . 1 . 1 . . . Storage 9 | . 3 . . . 1 . . . . . . . 1 . . . . . . . . . 1 . 1 . 2 . . . . . . . Processor 9 | . . . . . . . . . . 1 . . 1 . 1 . . . . . . . . . . . 1 . . . 2 . 2 1 Hackware 62 | . . . . . 2 . . 3 . . 1 2 3 . 1 2 . 3 2 2 2 3 . 6 . 4 1 3 1 7 3 6 3 2 Protection 25 | . . 1 . . 6 2 . 4 . 2 . 1 . . . . 3 . . . 1 . . . . . . . . . 2 . . 3 Artifact . | . . . . . . . . . . . . . . . . . . . . . . . . . . . . . . . . . . . Weapon 51 | 2 2 2 1 1 4 6 . 2 . 4 . 4 2 . 1 . 2 . . . 3 1 . 2 2 1 1 . . 1 3 2 1 1 Energy Gun 5 | . . . . . 1 . . . . . . 1 . . . . 1 . . . . . . . 1 1 . . . . . . . . Energy Cannon 10 | . . . . . . . . 1 . . . 1 . . . . . . . . 1 . . 1 1 . 1 . . 1 1 . 1 1 Ballistic Gun 15 | 2 2 1 . . 2 3 . 1 . 1 . 1 . . 1 . 1 . . . . . . . . . . . . . . . . . Ballistic Cannon 5 | . . . . . . . . . . 1 . 1 . . . . . . . . . . . 1 . . . . . . 1 1 . . Launcher 6 | . . 1 . 1 1 2 . . . . . . . . . . . . . . 1 . . . . . . . . . . . . . Special Weapon 5 | . . . . . . . . . . . . . 1 . . . . . . . 1 1 . . . . . . . . 1 1 . . Impact Weapon . | . . . . . . . . . . . . . . . . . . . . . . . . . . . . . . . . . . . Slashing Weapon 3 | . . . . . . 1 . . . 1 . . 1 . . . . . . . . . . . . . . . . . . . . . Piercing Weapon . | . . . . . . . . . . . . . . . . . . . . . . . . . . . . . . . . . . . Special Melee Weapon 2 | . . . 1 . . . . . . 1 . . . . . . . . . . . . . . . . . . . . . . . . Unidentified Prototypes 22 | . 1 . . 2 2 . . . . . . . . . . . 4 . . . 1 . 1 . 4 . 2 . . . 4 . . 1 Parts Lost 44 | . 1 . . . 11 3 . 2 . 5 . 6 . . 1 . . . 1 . . . . . 2 5 . . . . 1 2 2 2 Power 14 | . 1 . . . 1 1 . 1 . 1 . 1 . . 1 . . . 1 . . . . . 2 2 . . . . . 1 1 . Propulsion 13 | . . . . . 5 1 . . . . . 3 . . . . . . . . . . . . . . . . . . 1 1 . 2 Utility 13 | . . . . . 2 1 . 1 . 4 . 2 . . . . . . . . . . . . . 2 . . . . . . 1 . Weapon 4 | . . . . . 3 . . . . . . . . . . . . . . . . . . . . 1 . . . . . . . . Highest Loss Streak 4 | . 1 . . . 4 1 . 1 . 3 . 3 . . 1 . . . 1 . . . . . 2 3 . . . . 1 1 1 2 To Critical Strikes . | . . . . . . . . . . . . . . . . . . . . . . . . . . . . . . . . . . . Average Backups 16 | 3 9 15 13 12 16 17 18 18 20 20 20 19 17 15 15 15 14 15 14 14 14 14 15 15 17 19 19 20 19 19 19 19 19 17 Power . | . . . . . . . . . . . . . . . . . . . . . . . . . . . 1 1 1 1 . . . . Propulsion 1 | 1 2 4 3 3 2 2 1 1 1 1 1 1 . . . . . . . . . . . . 1 1 1 1 1 1 . . 1 2 Utility 9 | . 2 3 3 4 8 7 9 9 12 11 12 11 10 9 9 9 8 8 7 6 7 11 12 11 12 13 13 13 12 14 15 16 14 11 Weapon 4 | . 3 7 6 3 4 6 7 7 7 7 6 6 5 6 5 5 5 6 7 7 4 2 2 2 2 3 3 3 4 3 3 2 3 2 Tool/Special . | . . . . . . . . . . . . . . . . . . . . . . . . . . . . . . . . . . . Unused Backups 56 | . 5 . 2 2 6 3 . 1 . 3 1 2 2 . . . . . . 1 10 . . 2 2 . 2 2 . 2 . 1 1 6 Power 1 | . . . . . . . . . . . . . . . . . . . . . . . . . . . . . . . . . . 1 Propulsion 8 | . 1 . . 1 1 . . . . . . . . . . . . . . . 3 . . . . . 1 . . . . . 1 . Utility 29 | . 2 . . . 1 2 . . . 2 . 2 2 . . . . . . 1 4 . . 2 2 . 1 2 . 1 . 1 . 4 Weapon 18 | . 2 . 2 1 4 1 . 1 . 1 1 . . . . . . . . . 3 . . . . . . . . 1 . . . 1 Tool/Special . | . . . . . . . . . . . . . . . . . . . . . . . . . . . . . . . . . . . Average Slot Usage (%) 82 | . 99 100 100 99 81 74 63 76 76 71 67 71 69 73 69 65 77 77 75 76 74 82 80 87 89 91 92 94 94 94 94 94 94 95 Engine 4 | . 14 14 14 14 7 9 . 2 . 3 7 4 2 6 3 . 4 6 6 . 3 5 5 1 . . . . . . . . . . Core 1 | . . . . . 1 . . 4 7 2 . . . . . . . . . 3 5 5 5 1 . . . . . . . . . . Reactor 2 | . . . . . . . . . . . . . . . . . . . . . . . . 6 9 7 9 9 8 8 8 7 7 8 Treads 2 | . 13 14 14 14 4 . . . . . . 1 . . . . . . . . . . . 3 8 . . . . . . . . . Wheel 6 | . 14 14 14 14 11 17 18 18 15 15 15 5 4 . . . . . . . . . . 2 4 . . . . . . . . . Hover 6 | . . . . . . . . . . . . 7 7 . . . . . . . . . . 6 7 26 22 23 26 26 25 25 24 24 Flight 2 | . . . . . . . . . . . . . 1 6 6 6 5 5 6 6 5 11 12 6 . . . . . . . . . . Device 9 | . 14 4 . . 10 2 . 2 7 11 17 10 10 6 6 . 5 7 6 6 9 7 18 18 15 11 14 19 17 17 9 5 11 9 Storage 6 | . 14 14 14 14 9 9 9 9 7 7 7 7 6 6 6 6 6 6 6 6 5 5 5 5 5 5 4 4 4 4 4 4 4 4 Processor 1 | . . . . . . . . . . 1 . . . . 2 6 6 . . . . . . . . . . . . . 5 8 9 11 Hackware 15 | . . . . . 5 9 9 7 7 2 3 9 14 26 23 25 18 22 22 25 23 26 17 17 21 26 26 22 25 24 26 23 22 24 Protection 7 | . . 9 14 13 9 9 9 14 15 15 7 6 6 6 4 6 13 13 12 13 5 5 5 4 4 2 3 4 4 4 4 8 6 6 Energy Cannon 1 | . . . . . . . . . . . . 2 . . . . . . . . . 3 1 3 4 . . 2 . 2 3 3 4 3 Ballistic Gun 5 | . 28 26 15 23 17 15 18 11 13 3 . 1 . . . 4 6 . . 1 . . . . . . . . . . . . . . Ballistic Cannon 1 | . . . . . . . . . . 4 7 4 4 . . . . . . . . . . 3 4 . . . . . . 1 . . Special Weapon 1 | . . . . . . . . . . . . . . 6 5 1 . . 5 4 4 . 3 . . 2 3 2 4 3 4 2 4 3 Slashing Weapon 3 | . . . . . . 2 . 5 . 1 . 3 5 6 6 6 5 12 6 5 5 5 5 2 . 3 4 4 4 1 . . . . Peak Build Rating 197 | 6 13 17 19 26 46 49 44 51 49 63 66 65 78 73 77 75 97 92 93 96 92 107 117 142 140 136 152 159 166 181 181 182 194 197 Average Rating 85 | 4 9 15 17 20 34 45 44 46 46 53 60 53 58 73 72 73 89 89 89 90 88 99 113 127 132 128 140 155 165 173 178 178 190 192 On Entrance 87 | . 6 13 17 19 21 45 44 44 48 46 57 59 47 73 73 75 73 97 92 88 92 92 105 117 133 136 134 152 155 166 181 173 182 191 Avg Prop Armor Cover (%) 10 | 13 11 9 9 9 10 . . 5 . 5 . 5 5 . . . . . . . . . . 13 14 2 . . . . . . . 1 Naked Turns . | . . . . . . . . . . . . . . . . . . . . . . . . . . . . . . . . . . . Heaviest Build 125 | 8 35 38 38 39 105 113 101 113 102 124 125 125 117 50 50 49 55 49 52 49 50 50 47 92 113 102 93 100 99 109 110 111 104 111 Greatest Support 140 | 10 10 10 10 10 82 56 56 56 56 56 56 56 64 50 50 50 80 50 50 50 54 58 64 92 140 93 101 101 116 116 118 116 118 121 Greatest Overweight (x) 16 | . 3 3 3 3 12 3 1 3 1 3 2 6 16 . . . 1 14 1 . . . . 3 4 1 1 . . . . 1 . . Average Overweight (x) . | . 1 3 3 3 3 1 1 1 1 1 2 3 1 . . . . . . . . . . . 1 . . . . . . . . . Largest Inventory Capacity 25 | 5 15 15 15 15 25 25 25 25 25 25 25 25 25 15 15 15 15 15 15 15 15 15 15 15 20 20 20 20 20 20 20 20 20 20 Average Capacity 19 | 5 11 15 15 15 23 25 25 25 25 25 25 25 22 15 15 15 15 15 15 15 15 15 15 15 19 20 20 20 20 20 20 20 20 20 Most Carried 25 | 5 15 15 15 15 25 25 25 25 24 25 25 25 25 15 15 15 15 15 15 15 15 15 15 15 20 20 20 20 20 20 20 20 20 20 Average Carried 18 | 3 9 15 14 14 20 24 25 24 24 24 24 23 19 15 15 15 14 15 14 14 14 14 15 14 17 19 19 19 19 19 19 19 19 17 Final Capacity 25 | 5 15 15 15 15 25 25 25 25 25 25 25 25 15 15 15 15 15 15 15 15 15 15 15 15 20 20 20 20 20 20 20 20 20 20 Final Carried 25 | 5 15 15 15 15 24 25 25 25 24 25 25 24 15 15 15 15 15 15 14 15 15 15 15 15 18 20 20 20 20 20 20 20 19 15 Class Distribution -------------------- 33% | Botlord-Mutant 24% | Bothacker-Mutant 24% | Mutant 7% | Commander-Mutant 5% | Trapper-Mutant Dominant Class ---------------- Mutant | -10/Materials Mutant | -10/Mines Mutant | -10/Exiles Mutant | -9/Mines Mutant | -8/Materials Mutant | -8/Garrison Mutant | -8/Materials Mutant | -8/Garrison Trapper-Mutant | -7/Factory Bothacker-Mutant | -7/Garrison Bothacker-Mutant | -7/Factory Bothacker-Mutant | -7/Garrison Bothacker-Assassin | -6/Factory Bothacker-Mutant | -6/Waste Bothacker-Mutant | -6/Factory Commander-Mutant | -6/Extension Commander-Mutant | -6/Cetus Commander-Mutant | -6/Archives Trapper-Mutant | -6/Hub_04(d) Trapper-Mutant | -6/Garrison Bothacker-Mutant | -5/Factory Botlord-Mutant | -5/Garrison Botlord-Mutant | -4/Factory Botlord-Mutant | -4/Garrison Botlord-Mutant | -4/Factory Botlord-Mutant | -4/Garrison Botlord-Mutant | -3/Research Botlord-Mutant | -3/Garrison Botlord-Mutant | -2/Research Botlord-Mutant | -2/Garrison Botlord-Mutant | -2/Research Botlord-Mutant | -2/Garrison Botlord-Mutant | -1/Access Botlord-Mutant | -1/Command Resources | -11 -10 -10 -10 -9 -8 -8 -8 -8 -7 -7 -7 -7 -6 -6 -6 -6 -6 -6 -6 -6 -5 -5 -4 -4 -4 -4 -3 -3 -2 -2 -2 -2 -1 -1 ----------- Run | Yrd Mat Min Exi Min Mat Gar Mat Gar Fac Gar Fac Gar Fac Was Fac Ext Cet Arc Hub Gar Fac Gar Fac Gar Fac Gar Res Gar Res Gar Res Gar Acc Com Matter Collected 11909 | 298 565 138 . 142 1228 997 . 630 . 1185 . 619 220 . 79 410 204 110 61 94 300 279 100 727 516 447 280 160 100 220 440 526 453 381 Remotely . | . . . . . . . . . . . . . . . . . . . . . . . . . . . . . . . . . . . Salvage Created 11646 | 87 560 26 . 45 952 733 . 948 . 1242 . 616 563 . . 291 . 268 . 56 491 1039 182 789 630 157 179 . 79 188 320 310 706 189 Parts 611 | 4 28 9 . 11 57 47 . 50 . 42 . 40 21 . . 21 . 16 . 6 39 53 13 21 23 7 17 . 7 11 16 21 23 8 Haulers Intercepted 4 | . 2 . . . 1 . . . . . . . . . . 1 . . . . . . . . . . . . . . . . . . Recyclers Shooed 5 | . . . . . 1 . . . . . . . . . . 1 . . . . . . . . 2 . . . . . . . . 1 Parts Field Recycled . | . . . . . . . . . . . . . . . . . . . . . . . . . . . . . . . . . . . Retrieved Matter . | . . . . . . . . . . . . . . . . . . . . . . . . . . . . . . . . . . . Parts Self-Destructed . | . . . . . . . . . . . . . . . . . . . . . . . . . . . . . . . . . . . Prevented . | . . . . . . . . . . . . . . . . . . . . . . . . . . . . . . . . . . . Parts Restored 1 | . . . . . . . . . . . . . . . . . . . . . . . . . . . 1 . . . . . . . Broken 1 | . . . . . . . . . . . . . . . . . . . . . . . . . . . 1 . . . . . . . Kills | -11 -10 -10 -10 -9 -8 -8 -8 -8 -7 -7 -7 -7 -6 -6 -6 -6 -6 -6 -6 -6 -5 -5 -4 -4 -4 -4 -3 -3 -2 -2 -2 -2 -1 -1 ------- Run | Yrd Mat Min Exi Min Mat Gar Mat Gar Fac Gar Fac Gar Fac Was Fac Ext Cet Arc Hub Gar Fac Gar Fac Gar Fac Gar Res Gar Res Gar Res Gar Acc Com Combat Hostiles Destroyed 192 | . 8 3 . 4 19 20 . 20 . 27 . 20 . . . 5 . . . 3 4 17 . 10 5 4 . . . 3 3 5 10 2 Melee 17 | . . . . . . 3 . 1 . . . 1 . . . 2 . . . . 3 5 . 1 . . . . . 1 . . . . Guns 59 | . 8 . . . 19 13 . 8 . 5 . 3 . . . . . . . 2 . . . . . 1 . . . . . . . . Cannons 55 | . . . . . . . . . . 15 . 7 . . . . . . . . 1 . . 8 5 . . . . 1 2 5 9 2 AOE 57 | . . 3 . 4 . 4 . 11 . 7 . 9 . . . 3 . . . 1 . 12 . 1 . 2 . . . . . . . . Classes Destroyed 18 | 2 5 1 . . 3 2 . 1 . 2 . 1 . . . . . . . . 1 . . . . . . . . . . . . . Worker 20 | . 1 . . 1 2 . . . . . . . 3 . . . . . . . 3 . 3 . . . 2 . 3 . 1 . . 1 Builder 9 | . . . . . 1 . . . . . . . . . . 1 . . . . 2 . 3 . . . . . 2 . . . . . Tunneler 5 | 1 . 1 . . . . . . . . . . . . . . . . . . 1 . . . . . 1 . . . 1 . . . Hauler 5 | . 2 . . . 1 . . . . . . . 1 . . 1 . . . . . . . . . . . . . . . . . . Recycler 8 | 1 . . . . . . . . . . . . 3 . . . . . . . 1 . . . 3 . . . . . . . . . Operator 14 | . 3 . . . . . . . . 1 . . . . . 1 . 8 . . 1 . . . . . . . . . . . . . Watcher 9 | . 2 . . . . 1 . 3 . . . . . . . . . . . . 1 . 1 . . . 1 . . . . . . . Swarmer 52 | . . 3 . 4 4 3 . 9 . . . 7 . . . 3 . . . 3 . 11 . 1 . 3 . . . . . . 1 . Cutter 6 | . . . . . . . . . . . . 3 . . . . . . . . 3 . . . . . . . . . . . . . Saboteur 4 | . . . . . . 4 . . . . . . . . . . . . . . . . . . . . . . . . . . . . Grunt 67 | . 8 . . . 10 4 . 8 . 22 . 2 . . . 1 . . . . . 1 . 6 . . . . . . 1 . 3 1 Brawler 2 | . . . . . . . . . . 1 . 1 . . . . . . . . . . . . . . . . . . . . . . Duelist 2 | . . . . . 1 . . . . . . . . . . . . . . . . 1 . . . . . . . . . . . . Sentry 23 | . . . . . 4 8 . 1 . 5 . 1 . . . 1 . . . . . 1 . . 2 . . . . . . . . . Specialist 3 | . . . . . . 1 . . . . . . . . . . . . . . . . . 2 . . . . . . . . . . Hunter 6 | . . . . . . . . . . 1 . 1 . . . . . . . . . . . 1 2 . . . . . . . 1 . Programmer 24 | . . . . . . . . 1 . . . 5 . . . . . . . . . 3 . . 1 . . . . 3 1 5 5 . Behemoth 3 | . . . . . . . . . . . . . . . . . . . . . 1 . . . . 1 . . . . 1 . . . Combat Programmer 1 | . . . . . . . . . . . . . . . . . . . . . . . . . . . . . . . . . . 1 Thug 1 | . . . . . . . . 1 . . . . . . . . . . . . . . . . . . . . . . . . . . Best Kill Streak 8 | 1 2 3 . 4 6 4 . 8 . 8 . 5 3 . . 3 . 3 . 3 3 7 3 4 3 3 2 . 5 2 2 3 4 1 Combat Bots Only 8 | . 2 3 . 4 5 4 . 7 . 8 . 5 . . . 3 . . . 3 3 7 . 4 2 3 . . . 2 2 3 4 1 Max Kills in Single Turn 5 | 1 2 2 . 3 2 2 . 4 . 4 . 2 1 . . 3 . 1 . 2 1 5 1 1 1 1 1 . 1 1 1 1 1 1 Gunslinging 1 | . 1 . . . 1 . . 1 . . . . . . . . . . . . . . . . . . . . . . . . . . Exploded 5 | . . 2 . 3 . 1 . 4 . 4 . 2 . . . 3 . . . 1 . 5 . 1 . 1 . . . . . . . . Melee 1 | . . . . . . 1 . 1 . . . 1 . . . 1 . . . . 1 1 . 1 . . . . . 1 . . . . Uniques/NPCs Destroyed 4 | . . . . . . . . . . . . . . . . . . . . . . . . . 1 . 1 . . . . . . 2 BL-1NK (-4/Factory) Revision 17++ (-3/Research) MAIN.C Shell (-1/Command) MAIN.C (-1/Command) Combat | -11 -10 -10 -10 -9 -8 -8 -8 -8 -7 -7 -7 -7 -6 -6 -6 -6 -6 -6 -6 -6 -5 -5 -4 -4 -4 -4 -3 -3 -2 -2 -2 -2 -1 -1 -------- Run | Yrd Mat Min Exi Min Mat Gar Mat Gar Fac Gar Fac Gar Fac Was Fac Ext Cet Arc Hub Gar Fac Gar Fac Gar Fac Gar Res Gar Res Gar Res Gar Acc Com Hostile Shots Fired 1280 | . 45 4 . 2 159 101 . 65 . 181 . 101 6 . 42 58 3 . 80 7 29 7 6 68 81 50 . 6 2 14 34 36 26 67 Missed 438 | . 10 2 . 1 34 25 . 15 . 68 . 26 4 . 18 27 1 . 42 2 14 3 3 26 34 13 . 3 1 7 13 8 10 28 Hits 842 | . 35 2 . 1 125 76 . 50 . 113 . 75 2 . 24 31 2 . 38 5 15 4 3 42 47 37 . 3 1 7 21 28 16 39 Melee 28 | . . . . . 10 3 . . . . . 6 . . . . . . . . 9 . . . . . . . . . . . . . Projectile 814 | . 35 2 . 1 115 73 . 50 . 113 . 69 2 . 24 31 2 . 38 5 6 4 3 42 47 37 . 3 1 7 21 28 16 39 AOE 6 | . . . . . . . . . . . . 3 . . . . . . . . 1 . . . . . . . . . . 2 . . Critical Strikes 49 | . . . . . 6 4 . 3 . 3 . 8 . . 2 . . 1 1 . 5 1 . . 3 3 . . . 1 2 3 . 3 Actively Blocked 25 | . . . . . . . . . . 1 . 8 . . 2 . . 1 1 . 5 1 . . 3 1 . . . 1 . . . 1 Part Disruptions 9 | . . . . . . . . . . . . . . . . . . . . . . . . 1 . . . . . . . . . 8 Actively Blocked 5 | . . . . . . . . . . . . . . . . . . . . . . . . . . . . . . . . . . 5 Damage Taken 16349 | . 439 81 . 7 2032 1558 . 961 . 1302 . 1520 19 . 379 211 40 24 904 110 251 74 153 759 855 1193 57 57 30 116 474 724 731 1288 Core 1664 | . 81 . . . 176 105 . 103 . 137 . 252 . . 25 32 13 . 155 . . . . 36 52 208 . . . . 71 98 58 62 Absorbed by Shields 909 | . . . . . . . . . . . . 22 . . 58 93 38 . . . . . . 20 195 98 . . . 51 27 108 . 199 Reduced by Siege Mode 50 | . . . . . . . . . . . . . . . . . . . . . . . . 50 . . . . . . . . . . Redirected to Shielding 250 | . . . . . . . . . . . . . . . . . . . . . . . . . . . . . . . . 37 125 88 Ignored by Resistances 88 | . . . . . 88 . . . . . . . . . . . . . . . . . . . . . . . . . . . . . Regen/Repaired (Parts) 2124 | . 103 . . . 167 . . . . . . . . . 230 . . . . . 310 . . . . . 853 . . . 71 . 233 157 Core Remaining (%) 76 | 100 . . . 67 . . . 30 . . . 44 . . . . . . . 73 . 100 . . . 74 . 100 . . . 88 . 92 Volleys Fired 935 | 8 45 9 . 7 104 67 . 41 . 79 . 66 3 . 13 48 13 . 6 8 14 11 1 48 35 43 9 7 7 26 61 34 70 52 Largest 2 | 2 2 2 . 2 2 2 . 2 . 2 . 2 1 . 1 1 1 . 1 2 1 1 1 2 2 2 1 1 1 1 1 2 1 2 Hottest 178 | 40 46 46 . 46 46 46 . 75 . 50 . 105 5 . 33 43 35 . 5 65 30 43 10 178 178 124 10 120 10 120 120 178 120 178 Shots Fired 1287 | 16 90 13 . 12 207 119 . 69 . 94 . 94 3 . 13 48 13 . 6 10 14 11 1 66 64 45 9 7 7 26 61 42 70 57 Gun 625 | 16 90 8 . 10 207 110 . 56 . 33 . 38 . . 3 29 12 . . 4 . . . . . 9 . . . . . . . . Cannon 364 | . . . . . . . . 2 . 51 . 46 . . . . . . . . 8 . . 42 64 16 . 2 . 10 33 19 35 36 Launcher 59 | . . 5 . 2 . 9 . 11 . 10 . 10 . . . 1 . . . 2 . 5 . 1 . 3 . . . . . . . . Special 239 | . . . . . . . . . . . . . 3 . 10 18 1 . 6 4 6 6 1 23 . 17 9 5 7 16 28 23 35 21 Kinetic 741 | 16 90 8 . 10 207 110 . 56 . 84 . 46 . . 3 29 12 . . 4 . . . 19 30 . . . . . . 8 . 9 Thermal 242 | . . . . . . . . . . . . 38 . . . . . . . . 8 . . 23 30 25 . 2 . 10 33 11 35 27 Explosive 59 | . . 5 . 2 . 9 . 11 . 10 . 10 . . . 1 . . . 2 . 5 . 1 . 3 . . . . . . . . Electromagnetic 6 | . . . . . . . . 2 . . . . . . . . . . . . . . . . 4 . . . . . . . . . Robot Hit Streak 25 | 4 11 3 . 3 10 17 . 10 . 10 . 16 2 . 4 7 4 . 7 3 10 4 5 10 5 14 8 12 5 11 12 13 11 25 Robot Miss Streak 5 | 1 3 2 . 3 4 2 . 3 . 2 . 3 1 . 2 4 1 . 1 4 4 1 . 3 4 2 2 1 1 3 5 3 2 2 Penetration Max 2 | . . . . . . . . . . . . 1 . . 1 2 1 . . . . . . . . . . . . . . . . . Secondary Targets 12 | . 2 . . . 3 4 . 3 . . . . . . . . . . . . . . . . . . . . . . . . . . Max Gunslinging Chain 1 | . 1 . . . 1 1 . 1 . . . . . . . . . . . . . . . . . . . . . . . . . . Shots Hit Robots 1101 | 11 58 7 4 5 150 89 . 70 . 81 1 71 20 . 10 37 8 20 6 5 31 35 9 58 43 32 34 8 14 21 36 31 49 47 Core Hits 423 | 3 25 3 . 4 45 36 . 47 . 59 . 33 7 . 1 14 . 5 . 4 11 39 4 16 12 9 9 1 4 2 5 5 9 11 Critical Kills 8 | . . . . . . . . . . 1 . . . . . 2 . . . 1 . . . . . 1 . . . 1 1 . 1 . Critical Parts Destroyed 11 | 1 . . . . 1 1 . 1 . . . . . . 1 3 3 . . . . . . . . . . . . . . . . . Critical Strikes 44 | 1 . . . . 1 1 . 4 . 3 . 1 1 . 1 9 4 1 . 1 1 . . 4 2 1 3 1 . 1 1 1 1 . Meltdown 4 | . . . . . . . . . . . . . . . . . . . . . . . . . . 1 . . . 1 1 . 1 . Destroy 19 | 1 . . . . 1 1 . 1 . 1 . . . . 1 8 4 . . 1 . . . . . . . . . . . . . . Blast 8 | . . . . . . . . . . 2 . 1 . . . . . . . . . . . 2 2 . . . . . . 1 . . Sever 13 | . . . . . . . . 3 . . . . 1 . . 1 . 1 . . 1 . . 2 . . 3 1 . . . . . . Melee Attacks 469 | . . . 4 . . 24 . 62 . 46 1 32 19 . 4 6 . 27 3 8 52 59 17 49 3 8 27 5 10 3 . . . . Thermal 3 | . . . . . . . . . . 1 . . . . . . . . . . . . . . 2 . . . . . . . . . Impact . | . . . . . . . . . . . . . . . . . . . . . . . . . . . . . . . . . . . Slashing 441 | . . . . . . 24 . 55 . 42 . 27 14 . 4 6 . 27 3 8 52 59 17 49 1 8 27 5 10 3 . . . . Piercing . | . . . . . . . . . . . . . . . . . . . . . . . . . . . . . . . . . . . Sneak Attacks 105 | . . . 4 . . . . 3 . 2 1 1 15 . . 4 . 10 . . 14 7 8 1 . . 24 2 8 1 . . . . Combat Hostiles 1 | . . . . . . . . . . . . . . . . . . . . . . . . 1 . . . . . . . . . . Follow-up Attacks 2 | . . . . . . . . . . . . . . . . . . 2 . . . . . . . . . . . . . . . . Damage Inflicted 37548 | 130 864 381 . 269 2297 2162 . 2834 . 4742 . 3118 816 . 67 934 82 1394 37 161 1578 3326 692 2286 1700 1044 2009 218 718 290 737 517 971 1174 Guns 6550 | 130 864 70 . 69 2297 1248 . 599 . 307 . 559 . . 17 184 82 . . 54 . . . . . 70 . . . . . . . . Cannons 9671 | . . . . . . . . . . 1582 . 1086 . . . . . . . . 54 . . 1072 1667 516 . 84 . 211 737 517 971 1174 Explosions 6524 | . . 311 . 200 . 597 . 1004 . 1753 . 757 . . . 326 . . . 107 . 1174 . 71 . 224 . . . . . . . . Melee 14794 | . . . . . . 317 . 1231 . 1100 . 707 816 . 50 424 . 1394 37 . 1524 2152 692 1143 33 234 2009 134 718 79 . . . . Ramming 9 | . . . . . . . . . . . . 9 . . . . . . . . . . . . . . . . . . . . . . Kinetic 10244 | 130 864 70 . 69 2297 1248 . 599 . 1889 . 965 . . 17 184 82 . . 54 . . . 555 816 . . . . . . 111 . 294 Thermal 5943 | . . . . . . . . . . . . 680 . . . . . . . . 54 . . 517 817 586 . 84 . 211 737 406 971 880 Explosive 6524 | . . 311 . 200 . 597 . 1004 . 1753 . 757 . . . 326 . . . 107 . 1174 . 71 . 224 . . . . . . . . Electromagnetic 34 | . . . . . . . . . . . . . . . . . . . . . . . . . 34 . . . . . . . . . Impact . | . . . . . . . . . . . . . . . . . . . . . . . . . . . . . . . . . . . Slashing 14794 | . . . . . . 317 . 1231 . 1100 . 707 816 . 50 424 . 1394 37 . 1524 2152 692 1143 33 234 2009 134 718 79 . . . . Piercing . | . . . . . . . . . . . . . . . . . . . . . . . . . . . . . . . . . . . Highest Corruption 9 | . . . . . . . . 1 . . . 1 1 7 7 1 1 9 6 6 . 1 1 3 3 3 . . . 1 3 3 . . Average Corruption 2 | . . . . . . . . 1 . . . 1 1 5 5 1 1 3 1 6 . 1 1 1 3 3 . . . 1 2 3 . . Corruption Purged 11 | . . . . . . . . 1 . . . . . . . . . 9 . . . . . 1 . . . . . . . . . . Corruption Blocked 20 | . . . . . . . . . . . . . . . . . . . . . . . . . . . . . . . 1 4 6 9 Effects 92 | . . . . . . . . . . . . 9 2 . 3 7 1 2 5 13 . 5 . 7 10 11 . . . 2 8 7 . . Message Errors 17 | . . . . . . . . . . . . 1 . . . 2 . 1 . 3 . 2 . 1 3 . . . . 1 3 . . . Matter Fused 28 | . . . . . . . . . . . . 3 2 . 1 3 . . 2 3 . . . . 2 7 . . . 1 1 3 . . Heat Flow Errors 10 | . . . . . . . . . . . . 1 . . . . . . . 1 . 1 . 3 1 1 . . . . 1 1 . . Energy Discharges 13 | . . . . . . . . . . . . 2 . . 2 1 1 1 1 4 . . . . . 1 . . . . . . . . Parts Rejected 1 | . . . . . . . . . . . . . . . . . . . . . . . . . . . . . . . 1 . . . Data Loss (minor) 16 | . . . . . . . . . . . . . . . . 1 . . 1 2 . 2 . 3 2 1 . . . . 1 3 . . Data Loss (major) 3 | . . . . . . . . . . . . . . . . . . . 1 . . . . . 1 . . . . . 1 . . . Alerts 2 | . . . . . . . . . . . . 1 . . . . . . . . . . . . . 1 . . . . . . . . Weapon Failures 2 | . . . . . . . . . . . . 1 . . . . . . . . . . . . 1 . . . . . . . . . Overload Shots 1 | . . . . . . . . . . . . . . . . . . . . . . . . 1 . . . . . . . . . . Overflow Damage 2406 | . . 21 . 25 . 68 . 149 . 90 . 288 127 . . 104 . 371 2 . 376 61 208 61 46 81 99 . 149 . 14 . 52 14 Projectiles 286 | . . . . . . . . . . 46 . 85 . . . . . . . . . . . 29 46 . . . . . 14 . 52 14 Explosions 294 | . . 21 . 25 . 39 . 101 . 9 . 14 . . . 28 . . . . . 36 . 21 . . . . . . . . . . Melee 1826 | . . . . . . 29 . 48 . 35 . 189 127 . . 76 . 371 2 . 376 25 208 11 . 81 99 . 149 . . . . . Knockbacks 17 | . . . . . . . . . . 4 . 2 . . . . . . . . . . . 4 3 . . . . . . 1 . 3 Impact . | . . . . . . . . . . . . . . . . . . . . . . . . . . . . . . . . . . . Kinetic 12 | . . . . . . . . . . 4 . . . . . . . . . . . . . 2 3 . . . . . . . . 3 Secondary 5 | . . . . . . . . . . . . 2 . . . . . . . . . . . 2 . . . . . . . 1 . . Self-Inflicted Damage 512 | . . 68 . . . 91 . . . 53 . 220 . . . . . . . 41 . . . . . 39 . . . . . . . . Shots 13 | . . 2 . . . 2 . . . 1 . 6 . . . . . . . 1 . . . . . 1 . . . . . . . . Rammed 2 | . . . . . 1 . . . . . . 1 . . . . . . . . . . . . . . . . . . . . . . Targets Rammed 2 | . . . . . 1 . . . . . . 1 . . . . . . . . . . . . . . . . . . . . . . Kicked . | . . . . . . . . . . . . . . . . . . . . . . . . . . . . . . . . . . . Crushed . | . . . . . . . . . . . . . . . . . . . . . . . . . . . . . . . . . . . Highest Temperature 549 | . 16 14 . 28 22 100 . 81 . 108 . 276 . . . 8 12 . 1 203 15 251 . 194 152 549 1 28 . 80 108 94 122 316 Average Temperature 48 | . 5 9 . 13 7 21 . 13 . 22 . 56 . . . 3 8 . 1 78 13 86 . 61 41 108 1 19 . 39 40 32 40 74 Received Heat Transfer 3825 | . 246 . . . 801 540 . 396 . 552 . 330 . . . 57 . . 123 . . 9 . 154 43 349 . 12 . 21 54 18 54 66 Effects 10 | . . . . . . . . . . . . . . . . . . . . . . 2 . . . 8 . . . . . . . . Shutdowns 2 | . . . . . . . . . . . . . . . . . . . . . . . . . . 2 . . . . . . . . Interference 3 | . . . . . . . . . . . . . . . . . . . . . . 2 . . . 1 . . . . . . . . Short Circuit 1 | . . . . . . . . . . . . . . . . . . . . . . . . . . 1 . . . . . . . . Damage (major) 3 | . . . . . . . . . . . . . . . . . . . . . . . . . . 3 . . . . . . . . Damage (core) 1 | . . . . . . . . . . . . . . . . . . . . . . . . . . 1 . . . . . . . . Siege Activations 1 | . . . . . . . . . . . . . . . . . . . . . . . . 1 . . . . . . . . . . Total Turns 20 | . . . . . . . . . . . . . . . . . . . . . . . . 20 . . . . . . . . . . Longest Duration 20 | . . . . . . . . . . . . . . . . . . . . . . . . 20 . . . . . . . . . . Martial Activations . | . . . . . . . . . . . . . . . . . . . . . . . . . . . . . . . . . . . Shielding Activations . | . . . . . . . . . . . . . . . . . . . . . . . . . . . . . . . . . . . Robots Disrupted . | . . . . . . . . . . . . . . . . . . . . . . . . . . . . . . . . . . . Combat Hostiles . | . . . . . . . . . . . . . . . . . . . . . . . . . . . . . . . . . . . Robots Corrupted . | . . . . . . . . . . . . . . . . . . . . . . . . . . . . . . . . . . . Combat Hostiles . | . . . . . . . . . . . . . . . . . . . . . . . . . . . . . . . . . . . Parts Fried . | . . . . . . . . . . . . . . . . . . . . . . . . . . . . . . . . . . . Impact Corruptions 2 | . . . . . . . . . . . . 2 . . . . . . . . . . . . . . . . . . . . . . Robots Melted 4 | . . . . . . . . . . . . . . . . . . . . . . . . . . 1 . . . 1 1 . 1 . Combat Hostiles 4 | . . . . . . . . . . . . . . . . . . . . . . . . . . 1 . . . 1 1 . 1 . Parts Melted 17 | . . . . . . . . 1 . . . 2 . . . . . . . . . . . 1 . 2 . . . 2 3 . 6 . Heat Transferred 4592 | . . . . . . . . . . . . 868 . . . . . . . . 74 . . 444 673 327 . 74 . 91 583 277 740 441 Parts Sabotaged . | . . . . . . . . . . . . . . . . . . . . . . . . . . . . . . . . . . . Parts Stolen . | . . . . . . . . . . . . . . . . . . . . . . . . . . . . . . . . . . . Parts Stripped . | . . . . . . . . . . . . . . . . . . . . . . . . . . . . . . . . . . . Power Chain Reactions . | . . . . . . . . . . . . . . . . . . . . . . . . . . . . . . . . . . . Alert | -11 -10 -10 -10 -9 -8 -8 -8 -8 -7 -7 -7 -7 -6 -6 -6 -6 -6 -6 -6 -6 -5 -5 -4 -4 -4 -4 -3 -3 -2 -2 -2 -2 -1 -1 ------- Run | Yrd Mat Min Exi Min Mat Gar Mat Gar Fac Gar Fac Gar Fac Was Fac Ext Cet Arc Hub Gar Fac Gar Fac Gar Fac Gar Res Gar Res Gar Res Gar Acc Com Maximum Alert Level 5 | . . . . . . 4 2 5 3 5 3 4 2 . . 1 1 1 3 3 2 4 2 4 2 2 1 . . 1 . 1 1 . Low Security (%) 42 | 100 100 100 . 100 100 29 . . . . . . . 100 100 55 5 67 28 . 47 . . . . . 83 100 100 78 100 71 62 100 Level 1 13 | . . . . . . 13 . 3 . . . . 29 . . 44 94 32 1 . 42 11 . 9 . 3 16 . . 21 . 28 37 . Level 2 21 | . . . . . . 18 100 22 . 16 . 12 70 . . . . . 46 41 9 56 100 50 100 96 . . . . . . . . Level 3 14 | . . . . . . 36 . 27 100 23 100 49 . . . . . . 23 58 . 12 . 39 . . . . . . . . . . Level 4 7 | . . . . . . . . 43 . 42 . 37 . . . . . . . . . 18 . 1 . . . . . . . . . . Level 5 1 | . . . . . . . . 3 . 18 . . . . . . . . . . . . . . . . . . . . . . . . High Security . | . . . . . . . . . . . . . . . . . . . . . . . . . . . . . . . . . . . Max Security . | . . . . . . . . . . . . . . . . . . . . . . . . . . . . . . . . . . . Peak Influence 1805 | 5 110 108 . 151 117 1171 565 1675 899 1805 951 1297 680 110 88 315 366 287 840 868 474 1155 606 1208 650 556 312 57 29 242 135 228 266 112 Initial 947 | . . . . . . 43 565 345 879 622 947 616 680 110 63 37 148 120 . 575 455 327 606 321 634 385 312 . 27 2 135 11 91 112 Average 424 | . 42 20 . 31 33 532 551 1029 888 1178 921 1004 477 101 42 187 280 133 494 714 226 632 532 649 597 464 106 37 5 136 46 145 144 49 Influence Increases 15240 | 10 312 137 . 156 646 1148 7 1430 30 1233 24 821 45 . 127 532 358 297 1519 293 783 928 131 987 294 381 251 116 42 340 298 492 669 403 Destroy 0b10 Robot/C 5400 | . 160 60 . 80 420 480 . 660 . 580 . 400 . . . 220 160 80 520 60 80 400 20 300 120 80 . . . 60 60 160 200 40 Destroy 0b10 Robot/NC 535 | 10 40 5 . 5 20 15 . 40 . 20 . 15 30 . . 30 10 45 50 . 45 25 35 10 20 5 20 . 25 . 10 . . 5 Destroy Leader 722 | . 58 10 . 10 92 20 . 50 . 30 . 50 . . . 32 . . 144 . 22 40 2 10 50 20 2 . . 10 20 10 40 . Allied During Kill 1996 | . . . . 14 6 18 . 105 . 17 . 1 . . . 195 165 125 494 9 2 111 . 84 46 11 1 . 8 58 79 170 232 45 Trap Triggered on 0b10 110 | . . . . . . 50 . . . 10 . . . . . . . . . . . . . 10 . . . . . . . . . 40 Successful Hack 982 | . 8 . . . 30 26 7 12 30 35 24 14 . . 14 32 7 . 62 14 142 14 26 12 5 10 213 . . 16 81 14 134 . Select Force Hacks 200 | . . . . . . . . . . . . . . . 50 . . . 150 . . . . . . . . . . . . . . . Disable Machine 600 | . 30 30 . 30 . 60 . 75 . 75 . 15 . . . . . 45 . 75 75 . 15 . 15 30 . . . 15 . . 15 . Anti-Garrison Action 2150 | . . . . . . 350 . 300 . 200 . 200 . . . . . . . 100 . 100 . 400 . 150 . 100 . 150 . 100 . . Destroy Structure 1720 | . 1 32 . 17 3 84 . 158 . 116 . 111 . . 3 23 16 2 54 35 192 208 18 116 38 75 . 16 9 31 48 23 33 258 Partial Spotted 120 | . . . . . . . . . . 15 . . 15 . 30 . . . . . 30 . 15 . . . 15 . . . . . . . Lose Combat Pursuer 705 | . 15 . . . 75 45 . 30 . 135 . 15 . . 30 . . . 45 . 195 30 . 45 . . . . . . . 15 15 15 Influence Decreases 15179 | 10 312 137 . 156 579 54 636 287 816 317 948 405 1025 227 139 343 325 597 697 247 1183 241 827 238 952 375 807 66 89 101 525 354 647 517 Entered New Map 6915 | . . . . . . 24 596 187 796 267 858 265 617 207 27 41 119 180 . 247 413 141 549 138 574 165 244 . 23 1 107 4 62 63 Time Decay 5135 | 10 312 137 . 156 373 . 40 . 20 . 90 . 368 20 105 302 206 387 260 . 650 . 238 . 278 . 333 . 66 . 247 . 305 232 Search Patrol Dispatched 100 | . . . . . . . . . . . . . . . . . . . . . 100 . . . . . . . . . . . . . Lost Part 413 | . . . . . 100 30 . 20 . 50 . 60 . . 7 . . . 10 . . . . . 20 50 . . . . 10 20 20 16 Lost Ally 2100 | . . . . . 40 . . 80 . . . 80 40 . . . . 30 127 . 20 100 40 100 80 160 80 66 . 100 161 330 260 206 Purge Threat 516 | . . . . . 66 . . . . . . . . . . . . . 300 . . . . . . . 150 . . . . . . . Squads Dispatched 58 | . 3 1 . . 3 . 2 . . . . . 1 . 2 1 . . 13 . 7 . 2 . 2 . 4 . 1 . 6 . 7 3 Investigation 20 | . . 1 . . 1 . 2 . . . . . . . 1 . . . 9 . . . . . . . 2 . . . 2 . 2 . Extermination 18 | . . . . . . . . . . . . . 1 . . . . . 2 . 5 . 1 . 1 . . . 1 . 3 . 3 1 Reinforcement 18 | . 3 . . . 2 . . . . . . . . . 1 1 . . 2 . 2 . 1 . 1 . 2 . . . 1 . 1 1 Assault 1 | . . . . . . . . . . . . . . . . . . . . . . . . . . . . . . . . . . 1 Garrison 1 | . . . . . . . . . . . . . . . . . . . . . . . . . . . . . . . . . 1 . Intercept . | . . . . . . . . . . . . . . . . . . . . . . . . . . . . . . . . . . . Searches Triggered 1 | . . . . . . . . . . . . . . . . . . . . . 1 . . . . . . . . . . . . . Unchained Authorized 1 | . . . . . . . . . . . . . . . . . . . . . . . . . 1 . . . . . . . . . Construction Impeded 2 | . . . . . . . . . . . . . . . 1 1 . . . . . . . . . . . . . . . . . . Haulers Reinforced 1 | . . . . . . . . . . . . . . . . . . . . . . . . . . . . . . . . . 1 . Active Scanning Responses . | . . . . . . . . . . . . . . . . . . . . . . . . . . . . . . . . . . . Cargo Convoy Interrupts . | . . . . . . . . . . . . . . . . . . . . . . . . . . . . . . . . . . . Alert ID Control Effect 130 | . . . . . . . . . . . . . . . . 1 . . 1 1 9 3 3 12 . 3 4 8 1 14 17 7 18 28 Stealth | -11 -10 -10 -10 -9 -8 -8 -8 -8 -7 -7 -7 -7 -6 -6 -6 -6 -6 -6 -6 -6 -5 -5 -4 -4 -4 -4 -3 -3 -2 -2 -2 -2 -1 -1 --------- Run | Yrd Mat Min Exi Min Mat Gar Mat Gar Fac Gar Fac Gar Fac Was Fac Ext Cet Arc Hub Gar Fac Gar Fac Gar Fac Gar Res Gar Res Gar Res Gar Acc Com Distress Signals 30 | . . . . . . 1 . . . . . . . . 1 2 2 . 3 . . . . . . . 6 . . . 1 . . 14 Communications Jammed 296 | . . . . . . . . 8 . . . . . . . . . . . . . . . . 4 . 13 . . . 132 . 17 122 Distress Signals 293 | . . . . . . . . 8 . . . . . . . . . . . . . . . . 1 . 13 . . . 132 . 17 122 Times Spotted 526 | . 16 3 . 3 29 39 . 33 . 35 . 21 4 6 7 20 8 7 30 3 25 11 3 33 6 11 10 8 5 20 27 32 32 39 Peak Tracking Total 16 | . 3 3 . 3 7 6 . 5 . 8 . 5 4 6 4 4 5 1 13 3 9 4 2 5 3 4 3 2 2 5 5 13 5 16 Tactical Retreats 30 | . 1 . . . 4 3 . 2 . 5 . 1 . . 1 . . . 1 . 5 2 . 2 . . . . . . . 1 1 1 Traps | -11 -10 -10 -10 -9 -8 -8 -8 -8 -7 -7 -7 -7 -6 -6 -6 -6 -6 -6 -6 -6 -5 -5 -4 -4 -4 -4 -3 -3 -2 -2 -2 -2 -1 -1 ------- Run | Yrd Mat Min Exi Min Mat Gar Mat Gar Fac Gar Fac Gar Fac Was Fac Ext Cet Arc Hub Gar Fac Gar Fac Gar Fac Gar Res Gar Res Gar Res Gar Acc Com Traps Triggered 47 | . . . . . 1 9 . 7 . 7 . . 2 . 1 . . . 1 2 . . 2 10 . . 1 1 . 3 . . . . Indirectly . | . . . . . . . . . . . . . . . . . . . . . . . . . . . . . . . . . . . Trap Hack Attempts . | . . . . . . . . . . . . . . . . . . . . . . . . . . . . . . . . . . . Triggered . | . . . . . . . . . . . . . . . . . . . . . . . . . . . . . . . . . . . Disarmed . | . . . . . . . . . . . . . . . . . . . . . . . . . . . . . . . . . . . Reprogrammed 6 | . 6 . . . . . . . . . . . . . . . . . . . . . . . . . . . . . . . . . Reused 11 | . . . . . . 5 . . . 1 . . . . . . . . . . . . . 1 . . . . . . . . . 4 Traps Extracted . | . . . . . . . . . . . . . . . . . . . . . . . . . . . . . . . . . . . Installed 12 | . . . . . . 5 . . . 1 . . . . . . . . 1 . . . . 1 . . . . . . . . . 4 Triggered 11 | . . . . . . 5 . . . 1 . . . . . . . . . . . . . 1 . . . . . . . . . 4 Most Traps Carried 12 | . . . . . . 4 4 9 9 9 8 12 12 12 12 12 12 12 12 12 12 12 12 12 11 12 12 12 12 12 12 12 8 8 Machines | -11 -10 -10 -10 -9 -8 -8 -8 -8 -7 -7 -7 -7 -6 -6 -6 -6 -6 -6 -6 -6 -5 -5 -4 -4 -4 -4 -3 -3 -2 -2 -2 -2 -1 -1 ---------- Run | Yrd Mat Min Exi Min Mat Gar Mat Gar Fac Gar Fac Gar Fac Was Fac Ext Cet Arc Hub Gar Fac Gar Fac Gar Fac Gar Res Gar Res Gar Res Gar Acc Com Machines Disabled 70 | . 2 2 . 2 . 6 . 9 . 7 . 3 . . . 2 . 3 . 7 5 2 1 4 1 5 . 2 . 4 . 2 1 . Max in Single Turn 2 | . 1 2 . 2 . 1 . 1 . 1 . 1 . . . . . . . 1 1 1 . 1 . 1 . 1 . 1 . 1 . . Garrison Access 2 | . . . . . . . . . . . . . . . . . . . . . . . . . . . 1 . . . . . 1 . Garrison Relay 30 | . . . . . . 3 . 4 . 2 . 2 . . . . . . . 2 . 2 . 5 . 3 . 2 . 3 . 2 . . Phase Generator 2 | . . . . . . 1 . . . . . . . . . . . . . . . . . . . . . . . . . . . 1 Network Hub 4 | . . . . . . . . . . . . . . . . . . . 4 . . . . . . . . . . . . . . . Machines Repaired . | . . . . . . . . . . . . . . . . . . . . . . . . . . . . . . . . . . . Machines Dismantled . | . . . . . . . . . . . . . . . . . . . . . . . . . . . . . . . . . . . Machines Sabotaged 3 | . . . . . . . . . . . . . . . . . . . 3 . . . . . . . . . . . . . . . Overloaded Fab Kills 1 | . . . . . . . . . . . . . . . 1 . . . . . . . . . . . . . . . . . . . Hacking | -11 -10 -10 -10 -9 -8 -8 -8 -8 -7 -7 -7 -7 -6 -6 -6 -6 -6 -6 -6 -6 -5 -5 -4 -4 -4 -4 -3 -3 -2 -2 -2 -2 -1 -1 --------- Run | Yrd Mat Min Exi Min Mat Gar Mat Gar Fac Gar Fac Gar Fac Was Fac Ext Cet Arc Hub Gar Fac Gar Fac Gar Fac Gar Res Gar Res Gar Res Gar Acc Com Machines Accessed 127 | . 5 1 2 1 12 4 2 2 2 3 2 1 1 . 6 6 1 . 11 1 13 1 4 2 2 2 12 1 2 2 8 1 12 2 Terminals 80 | . 4 . . . 7 4 1 2 1 3 . 1 1 . 3 6 1 . 10 1 4 1 1 2 1 2 4 1 1 2 4 1 9 2 Fabricators 5 | . . . . . . . . . . . . . . . 1 . . . . . 1 . 1 . . . 1 . . . 1 . . . Repair Stations 10 | . 1 . . . 2 . . . . . . . . . 1 . . . . . 3 . . . . . 2 . . . . . 1 . Recycling Units 6 | . . . . . 1 . . . . . . . . . 1 . . . . . 2 . 1 . . . . . . . 1 . . . Scanalyzers 10 | . . . . . 1 . . . . . 1 . . . . . . . . . 2 . . . . . 4 . . . 1 . 1 . Garrison Access 12 | . . . . . 1 . 1 . 1 . 1 . . . . . . . 1 . 1 . 1 . 1 . 1 . 1 . 1 . 1 . Total Hacks 425 | . 17 1 5 1 35 8 6 7 5 4 4 1 3 . 19 17 1 . 45 7 46 5 20 9 5 8 51 3 7 9 26 1 44 5 Successful 212 | . 11 1 5 1 27 3 4 3 4 3 3 1 1 . 11 8 1 . 16 1 24 2 7 1 4 2 31 1 1 2 12 1 18 2 Failed 211 | . 6 . . . 8 5 2 4 1 1 1 . 2 . 8 9 . . 29 6 21 3 13 8 1 6 20 2 6 7 14 . 25 3 Catastrophic 40 | . 1 . . . 1 . . . . . . . . . . 1 . . 5 1 6 1 . 2 . 3 6 1 3 4 2 . 3 . Database Lockouts 2 | . . . . . . . . . . . . . . . . . . . . . 1 . . . . . . . . . . . 1 . Manual 149 | . 12 . 1 . 15 3 4 5 2 . . . . . 9 6 1 . 23 . 15 1 15 3 2 3 8 3 1 7 7 1 2 . Terminals 270 | . 15 . . . 23 8 3 7 3 4 . 1 3 . 10 17 1 . 44 7 11 5 4 9 4 8 11 3 5 9 12 1 37 5 Fabricators 15 | . . . . . . . . . . . . . . . 3 . . . . . 1 . 5 . . . 5 . . . 1 . . . Repair Stations 30 | . 2 . . . 4 . . . . . . . . . 3 . . . . . 9 . . . . . 11 . . . . . 1 . Recycling Units 31 | . . . . . 2 . . . . . . . . . 3 . . . . . 10 . 7 . . . . . . . 9 . . . Scanalyzers 49 | . . . . . 5 . . . . . 3 . . . . . . . . . 14 . . . . . 21 . . . 2 . 4 . Garrison Access 23 | . . . . . 1 . 3 . 2 . 1 . . . . . . . 1 . 1 . 4 . 1 . 3 . 2 . 2 . 2 . Terminal Hacks 76 | . 4 1 5 1 7 3 . 2 . 3 . 1 1 . 2 6 1 . 6 1 1 2 . 1 1 2 2 1 . 2 4 1 13 2 Record 4 | . . . 4 . . . . . . . . . . . . . . . . . . . . . . . . . . . . . . . Part Schematic 2 | . . . . . . . . . . . . . . . . 2 . . . . . . . . . . . . . . . . . . Robot Analysis 2 | . 1 . . . . . . . . . . . 1 . . . . . . . . . . . . . . . . . . . . . Prototype ID Bank 3 | . 1 . . . 1 . . . . . . . . . 1 . . . . . . . . . . . . . . . . . . . Open Door 12 | . . 1 . 1 . 1 . . . 1 . . . . . 3 1 . . . . . . . . . . . . . . . 3 1 Level Access Points 1 | . . . . . . . . . . . . . . . . . . . . . . . . . . . . . . . . . 1 . Branch Access Points 1 | . . . . . . . . . . . . . . . . . . . . . . . . . . . . . . . . . 1 . Emergency Access Points 4 | . . . . . . . . 1 . 1 . . . . . . . . . . . . . . . 1 . . . . . . 1 . Terminal Index 3 | . . . . . 1 . . . . . . . . . . . . . 1 . . . . . . . . . . . . . . 1 Fabricator Index 1 | . . . . . . . . . . . . . . . . . . . . . . . . . . . . . . . . . 1 . Recycling Unit Index 1 | . . . . . . . . . . . . . . . . . . . . . . . . . . . . . . . . . 1 . Garrison Index 1 | . . . . . 1 . . . . . . . . . . . . . . . . . . . . . . . . . . . . . Unreport Threat 5 | . . . . . 2 . . . . . . . . . . . . . 2 . . . . . . . 1 . . . . . . . Locate Traps 5 | . 1 . . . . . . . . . . . . . . . . . 1 . . . . . 1 . . . . . 1 . 1 . Reprogram Traps 1 | . 1 . . . . . . . . . . . . . . . . . . . . . . . . . . . . . . . . . Recall Investigation 1 | . . . . . . . . . . . . . . . . . . . . . . . . . . . . . . . . . 1 . Recall Extermination 2 | . . . . . . . . . . . . . . . . . . . . . 1 . . . . . . . . . . . 1 . Hauler Manifests 2 | . . . . . 1 . . . . . . . . . . . . . . . . . . . . . 1 . . . . . . . Registered Components 3 | . . . . . 1 . . . . . . . . . . . . . . . . . . . . . . . . . 1 . 1 . Zone Layout 7 | . . . . . . . . . . . . . . . 1 1 . . 2 . . . . . . . . . . . 2 . 1 . Garrison Registry 8 | . . . . . . . . . . 1 . 1 . . . . . . . 1 . 1 . . . 1 . 1 . 1 . 1 . . Patrol Navigation 3 | . . . . . . 1 . 1 . . . . . . . . . . . . . 1 . . . . . . . . . . . . Security Stations 3 | . . . . . . 1 . . . . . . . . . . . . . . . . . 1 . . . . . 1 . . . . Proto ID Catalog 1 | . . . 1 . . . . . . . . . . . . . . . . . . . . . . . . . . . . . . . Fabricator Hacks 3 | . . . . . . . . . . . . . . . 1 . . . . . . . . . . . 1 . . . 1 . . . Network Status 1 | . . . . . . . . . . . . . . . 1 . . . . . . . . . . . . . . . . . . . Load Schematic 2 | . . . . . . . . . . . . . . . . . . . . . . . . . . . 1 . . . 1 . . . Repair Station Hacks 22 | . 2 . . . 4 . . . . . . . . . 2 . . . . . 5 . . . . . 8 . . . . . 1 . Scan Component 12 | . 1 . . . 2 . . . . . . . . . 1 . . . . . 3 . . . . . 4 . . . . . 1 . Repair 10 | . 1 . . . 2 . . . . . . . . . 1 . . . . . 2 . . . . . 4 . . . . . . . Recycling Unit Hacks 7 | . . . . . 1 . . . . . . . . . 1 . . . . . 1 . 1 . . . . . . . 3 . . . Report Inventory 3 | . . . . . 1 . . . . . . . . . 1 . . . . . . . . . . . . . . . 1 . . . Retrieve Components 4 | . . . . . . . . . . . . . . . . . . . . . 1 . 1 . . . . . . . 2 . . . Scanalyzer 35 | . . . . . 5 . . . . . 2 . . . . . . . . . 11 . . . . . 16 . . . . . 1 . Insert Component 10 | . . . . . 1 . . . . . 1 . . . . . . . . . 5 . . . . . 3 . . . . . . . Analyze 8 | . . . . . 1 . . . . . . . . . . . . . . . 4 . . . . . 3 . . . . . . . Retrieve Study 17 | . . . . . 3 . . . . . 1 . . . . . . . . . 2 . . . . . 10 . . . . . 1 . Garrison Access Hacks 16 | . . . . . 1 . 2 . 2 . 1 . . . . . . . 1 . 1 . 2 . 1 . 1 . 1 . 1 . 2 . Unlock Access 11 | . . . . . 1 . 1 . 1 . 1 . . . . . . . 1 . 1 . 1 . 1 . 1 . 1 . 1 . . . Seal Access 1 | . . . . . . . . . . . . . . . . . . . . . . . . . . . . . . . . . 1 . Coupler Status 4 | . . . . . . . 1 . 1 . . . . . . . . . . . . . 1 . . . . . . . . . 1 . Unauthorized Hacks 53 | . 5 . . . 9 . 2 1 2 . . . . . 5 2 . . 9 . 5 . 4 . 2 . 3 . . . 3 . 1 . Terminals 37 | . 5 . . . 8 . 1 1 2 . . . . . 3 2 . . 9 . 1 . . . 2 . 2 . . . . . 1 . Track 1 | . . . . . . . . . . . . . . . . . . . . . . . . . 1 . . . . . . . . . Assimilate 1 | . . . . . . . . . . . . . . . . . . . . . . . . . . . 1 . . . . . . . Botnet 16 | . 2 . . . 3 . . 1 1 . . . . . 1 2 . . 2 . 1 . . . 1 . 1 . . . . . 1 . Operators 2 | . 1 . . . . . . . 1 . . . . . . . . . . . . . . . . . . . . . . . . . Skim 9 | . 2 . . . 5 . . . . . . . . . 2 . . . . . . . . . . . . . . . . . . . Sabotage 7 | . . . . . . . . . . . . . . . . . . . 7 . . . . . . . . . . . . . . . Search 1 | . . . . . . . 1 . . . . . . . . . . . . . . . . . . . . . . . . . . . Fabricators 2 | . . . . . . . . . . . . . . . 1 . . . . . . . 1 . . . . . . . . . . . Haulers 1 | . . . . . . . . . . . . . . . . . . . . . . . 1 . . . . . . . . . . . Overload 1 | . . . . . . . . . . . . . . . 1 . . . . . . . . . . . . . . . . . . . Repair Stations . | . . . . . . . . . . . . . . . . . . . . . . . . . . . . . . . . . . . Recycling Units 10 | . . . . . 1 . . . . . . . . . 1 . . . . . 4 . 2 . . . . . . . 2 . . . Reject 2 | . . . . . . . . . . . . . . . . . . . . . 1 . 1 . . . . . . . . . . . Recyclers 2 | . . . . . . . . . . . . . . . . . . . . . 1 . . . . . . . . . 1 . . . Mask 6 | . . . . . 1 . . . . . . . . . 1 . . . . . 2 . 1 . . . . . . . 1 . . . Scanalyzers . | . . . . . . . . . . . . . . . . . . . . . . . . . . . . . . . . . . . Garrison Access 4 | . . . . . . . 1 . . . . . . . . . . . . . . . 1 . . . 1 . . . 1 . . . Reprogram 4 | . . . . . . . 1 . . . . . . . . . . . . . . . 1 . . . 1 . . . 1 . . . Data Cores Recovered 2 | . . . . . . . . . . . . . . . . 2 . . . . . . . . . . . . . . . . . . Used 1 | . . . . . . . . . . . . . . . . 1 . . . . . . . . . . . . . . . . . . Hacking Detections 86 | . 4 . . . 10 4 1 2 2 1 2 . 1 . 2 4 2 . 5 . 10 1 3 2 1 2 7 . 2 2 7 1 7 1 Full Trace Events 3 | . . . . . . 1 . . . . . . . . . . . . 1 . . . . . . . 1 . . . . . . . Feedback Events . | . . . . . . . . . . . . . . . . . . . . . . . . . . . . . . . . . . . Feedback Blocked . | . . . . . . . . . . . . . . . . . . . . . . . . . . . . . . . . . . . Robot Schematics Acquired . | . . . . . . . . . . . . . . . . . . . . . . . . . . . . . . . . . . . Robots Built . | . . . . . . . . . . . . . . . . . . . . . . . . . . . . . . . . . . . Authchips . | . . . . . . . . . . . . . . . . . . . . . . . . . . . . . . . . . . . Time . | . . . . . . . . . . . . . . . . . . . . . . . . . . . . . . . . . . . Total Robot Build Rating . | . . . . . . . . . . . . . . . . . . . . . . . . . . . . . . . . . . . Part Schematics Acquired 9 | . . . . . 1 . . . . . . . . . . 2 . . . . 4 . . . . . 2 . . . . . . . Parts Built . | . . . . . . . . . . . . . . . . . . . . . . . . . . . . . . . . . . . Authchips . | . . . . . . . . . . . . . . . . . . . . . . . . . . . . . . . . . . . Time . | . . . . . . . . . . . . . . . . . . . . . . . . . . . . . . . . . . . Total Part Build Rating . | . . . . . . . . . . . . . . . . . . . . . . . . . . . . . . . . . . . Part Studies Acquired 17 | . . . . . 3 . . . . . 1 . . . . . . . . . 2 . . . . . 10 . . . . . 1 . Parts Repaired 10 | . 1 . . . 2 . . . . . . . . . 1 . . . . . 2 . . . . . 4 . . . . . . . Time 634 | . 26 . . . 58 . . . . . . . . . 44 . . . . . 147 . . . . . 359 . . . . . . . Parts Recycled . | . . . . . . . . . . . . . . . . . . . . . . . . . . . . . . . . . . . Recycled Matter . | . . . . . . . . . . . . . . . . . . . . . . . . . . . . . . . . . . . Retrieved Matter . | . . . . . . . . . . . . . . . . . . . . . . . . . . . . . . . . . . . Retrieved Components 21 | . . . . . . . . . . . . . . . . . . . . . 2 . . . . . . . . . 19 . . . Parts Scanalyzed 7 | . . . . . 1 . . . . . . . . . . . . . . . 4 . . . . . 2 . . . . . . . Part Schematics Acquired 7 | . . . . . 1 . . . . . . . . . . . . . . . 4 . . . . . 2 . . . . . . . Parts Damaged 2 | . . . . . . . . . . . . . . . . . . . . . 1 . . . . . 1 . . . . . . . Bothacking | -11 -10 -10 -10 -9 -8 -8 -8 -8 -7 -7 -7 -7 -6 -6 -6 -6 -6 -6 -6 -6 -5 -5 -4 -4 -4 -4 -3 -3 -2 -2 -2 -2 -1 -1 ------------ Run | Yrd Mat Min Exi Min Mat Gar Mat Gar Fac Gar Fac Gar Fac Was Fac Ext Cet Arc Hub Gar Fac Gar Fac Gar Fac Gar Res Gar Res Gar Res Gar Acc Com Used RIF Installer 13 | . . . . . . 1 . 1 . 1 . 1 . . . . . . . 1 . 1 . 2 . 1 . 2 . 1 . 1 . . Coupler Efficiency 2 | . . . . . . . . . . . . . . . . . . . . . . . . . . . . 2 . . . . . . Hotswap 1 | . . . . . . . . . . . . . . . . . . . . . . . . . . . . . . . . 1 . . Signal Jammer 1 | . . . . . . . . . . . . . . . . . . . . . . 1 . . . . . . . . . . . . Watcher Feeds 1 | . . . . . . . . . . . . . . . . . . . . . . . . 1 . . . . . . . . . . Patrol Navigation 1 | . . . . . . . . . . . . . . . . . . . . . . . . . . 1 . . . . . . . . Alert ID Control 1 | . . . . . . . . . . 1 . . . . . . . . . . . . . . . . . . . . . . . . Structural Interface 1 | . . . . . . . . . . . . . . . . . . . . . . . . 1 . . . . . . . . . . Program Shield 1 | . . . . . . . . 1 . . . . . . . . . . . . . . . . . . . . . . . . . . Autoassimilate 2 | . . . . . . . . . . . . 1 . . . . . . . 1 . . . . . . . . . . . . . . Crosswire 1 | . . . . . . . . . . . . . . . . . . . . . . . . . . . . . . 1 . . . . Robots Hacked 198 | . . . 4 . . . . 5 . 2 1 4 4 . 5 6 1 . 5 1 7 6 1 12 . 8 10 6 4 15 21 21 30 19 Non-combat 43 | . . . 3 . . . . . . . 1 . 3 . 3 1 . . 2 . 5 . 1 . . . 3 . 1 . 7 . 9 4 Combat 155 | . . . 1 . . . . 5 . 2 . 4 1 . 2 5 1 . 3 1 2 6 . 12 . 8 7 6 3 15 14 21 21 15 Autoassimilated 46 | . . . . . . . . . . . . . . . . 1 . . 1 . 1 1 . 3 . 2 4 2 . 3 6 9 9 4 Robot Hacks Applied 166 | . . . 4 . . . . 5 . 2 1 4 6 . 7 6 1 . 4 2 6 5 1 10 . 6 7 4 4 12 19 13 22 15 parse_system 12 | . . . 4 . . . . . . . . . . . . 1 1 . . . . . . 1 . . 1 . . . 1 . 1 2 find_chute 3 | . . . . . . . . . . . . . 1 . . . . . . . 1 . 1 . . . . . . . . . . . deconstruct_machine 1 | . . . . . . . . . . . . . . . . . . . 1 . . . . . . . . . . . . . . . hold_bot 3 | . . . . . . . . . . . . . . . . . . . . . 3 . . . . . . . . . . . . . map_walls 2 | . . . . . . . . . . . . . . . . . . . . . . . . . . . . . . . . . 2 . map_earth 2 | . . . . . . . . . . . . . . . . . . . . . . . . . . . . . . . 1 . 1 . find_fabricator 1 | . . . . . . . . . . . . . 1 . . . . . . . . . . . . . . . . . . . . . drop_inventory 11 | . . . . . . . . . . . 1 . 1 . . . . . 1 . 1 . . . . . 2 . . . 1 . 4 . locate_stockpiles 1 | . . . . . . . . . . . . . 1 . . . . . . . . . . . . . . . . . . . . . find_recycling 2 | . . . . . . . . . . . . . . . 1 . . . . . . . . . . . . . . . 1 . . . deconstruct_bot 1 | . . . . . . . . . . . . . . . . . . . . . . . . . . . . . . . 1 . . . block_reporting 3 | . . . . . . . . . . . . . . . 1 1 . . . . . . . . . . 1 . . . . . . . map_route 1 | . . . . . . . . . . . . . . . . . . . . . . . . . . . . . 1 . . . . . find_garrison 1 | . . . . . . . . . . . . . . . 1 . . . . . . . . . . . . . . . . . . . link_fov 1 | . . . . . . . . . . . . . . . . . . . . . . . . . . . . . . . . . . 1 scatter_targeting 4 | . . . . . . . . . . . . . . . . . . . . . . 1 . 1 . . . . . . 1 . 1 . mark_system 1 | . . . . . . . . . . . . . . . . . . . . . . . . . . . . . . 1 . . . . disrupt_area 2 | . . . . . . . . . . . . . . . . . . . . . . . . . . . . . . 1 . . . 1 overload_power 1 | . . . . . . . . . . . . . . . . . . . . . . 1 . . . . . . . . . . . . amplify_resonance 15 | . . . . . . . . . . . . . . . 1 1 . . . . . . . 1 . 1 . 1 . 1 2 3 2 2 wipe_record 2 | . . . . . . . . . . . . . . . 2 . . . . . . . . . . . . . . . . . . . disable_weapons 2 | . . . . . . . . . . . . . . . . . . . 1 . . . . . . . . . . 1 . . . . reboot_system 12 | . . . . . . . . 1 . . . . . . . 1 . . . . 1 2 . . . 1 1 1 1 . 1 . 1 1 overwrite_iff 22 | . . . . . . . . 1 . . . 2 . . . . . . . 1 . . . 2 . 1 . 1 . . 4 3 4 3 streamctrl_low 1 | . . . . . . . . . . . . . 1 . . . . . . . . . . . . . . . . . . . . . streamctrl_high 1 | . . . . . . . . . . . . . . . . . . . . . . . . 1 . . . . . . . . . . formatsys_low 6 | . . . . . . . . . . . . . . . 1 . . . . . . . . . . . 1 . . . 2 . 1 1 formatsys_high 51 | . . . . . . . . 3 . 2 . 2 1 . . 2 . . 1 1 . 1 . 4 . 3 1 1 2 8 4 7 5 3 formatsys_deep 1 | . . . . . . . . . . . . . . . . . . . . . . . . . . . . . . . . . . 1 Relay Couplers Released 128 | . . . . . . 13 . 18 . 8 . 6 . . . . . . . 8 . 6 . 22 . 13 2 10 . 13 . 6 3 . Machine Destruction 128 | . . . . . . 13 . 18 . 8 . 6 . . . . . . . 8 . 6 . 22 . 13 2 10 . 13 . 6 3 . Attached 52 | . . . . . . . . 3 . . 1 2 3 . . 1 . . 2 2 1 2 . 6 . 4 1 3 1 7 2 6 3 2 Crosswired 9 | . . . . . . . . . . . . . . . . . . . . . . . . . . . . . . 5 . 4 . . Fabnet Peak Effective % . | . . . . . . . . . . . . . . . . . . . . . . . . . . . . . . . . . . . Robots Rewired 18 | . . . . . . 2 . . . . . . . . . 6 . . . 1 . 3 . 3 . 3 . . . . . . . . Allies Hacked 1 | . . . . . . . . . . . . . . . . . . . . . . . . . . . . . . . . 1 . . Hacks Repelled . | . . . . . . . . . . . . . . . . . . . . . . . . . . . . . . . . . . . Allies | -11 -10 -10 -10 -9 -8 -8 -8 -8 -7 -7 -7 -7 -6 -6 -6 -6 -6 -6 -6 -6 -5 -5 -4 -4 -4 -4 -3 -3 -2 -2 -2 -2 -1 -1 -------- Run | Yrd Mat Min Exi Min Mat Gar Mat Gar Fac Gar Fac Gar Fac Was Fac Ext Cet Arc Hub Gar Fac Gar Fac Gar Fac Gar Res Gar Res Gar Res Gar Acc Com Total Allies 164 | . . 3 . . . 2 2 4 . 4 . 4 2 . 1 13 5 . 2 2 1 5 . 13 . 9 8 4 2 11 15 18 18 16 Largest Group 17 | . . 3 3 3 3 2 4 6 . 2 2 2 2 . 1 13 16 16 10 2 3 4 2 6 5 6 4 5 3 9 13 15 17 13 Highest-Rated Group 1114 | . . 40 40 40 40 70 102 132 . 56 56 56 55 . 26 512 939 939 552 180 209 209 76 283 236 286 205 260 175 572 654 843 998 1114 Highest-Rated Ally 216 | . . 16 16 16 16 39 39 39 . 31 31 32 32 . 26 159 159 159 96 148 148 148 49 58 49 58 64 56 64 148 69 144 183 216 Total Orders 45 | . . . . . . . . 2 . . . 2 1 . . . . 4 1 6 3 2 . 1 . 5 1 2 . 2 1 . 3 9 STAY 19 | . . . . . . . . 1 . . . 1 1 . . . . 1 1 3 1 1 . . . 3 1 1 . 1 . . . 3 ROAM 2 | . . . . . . . . . . . . . . . . . . 1 . . . . . 1 . . . . . . . . . . FOLLOW 18 | . . . . . . . . 1 . . . 1 . . . . . 2 . 3 2 1 . . . 2 . 1 . 1 . . 1 3 AID 4 | . . . . . . . . . . . . . . . . . . . . . . . . . . . . . . . 1 . 2 1 EXPLORE 1 | . . . . . . . . . . . . . . . . . . . . . . . . . . . . . . . . . . 1 RETURN 1 | . . . . . . . . . . . . . . . . . . . . . . . . . . . . . . . . . . 1 Ally Attacks 1357 | . . . . . 16 18 . 86 . 8 . 12 3 . . 100 32 45 151 6 41 29 11 68 63 53 28 41 2 100 88 73 98 185 Total Damage 48713 | . . . . . 195 286 . 1150 . 86 . 256 115 . . 2230 1031 1302 4937 148 1712 841 454 2304 1876 1734 882 1063 60 3215 2819 2793 3876 13348 Kills 241 | . . . . . 2 4 . 14 . 2 . . . . . 13 10 5 40 1 9 6 4 18 4 3 4 8 1 14 17 12 19 31 Allies Corrupted 9 | . . . . . . . . . . . . . . . . . . . 1 . . . . . . . . . . 3 2 . 2 1 Allies Melted . | . . . . . . . . . . . . . . . . . . . . . . . . . . . . . . . . . . . Intel | -11 -10 -10 -10 -9 -8 -8 -8 -8 -7 -7 -7 -7 -6 -6 -6 -6 -6 -6 -6 -6 -5 -5 -4 -4 -4 -4 -3 -3 -2 -2 -2 -2 -1 -1 ------- Run | Yrd Mat Min Exi Min Mat Gar Mat Gar Fac Gar Fac Gar Fac Was Fac Ext Cet Arc Hub Gar Fac Gar Fac Gar Fac Gar Res Gar Res Gar Res Gar Acc Com Active Infowar (turns) 15011 | 6 1049 255 . 1 426 462 . 371 59 945 194 584 673 . . . . . . . 2068 639 511 2009 527 293 807 331 398 107 510 455 695 636 Optics 2296 | . . . . . . . . . . . . . . . . . . . . . . . . . . . . . . . 510 455 695 636 Sensors 737 | . . . . 1 . . . . . 2 61 . 673 . . . . . . . . . . . . . . . . . . . . . Structural 1163 | . . . . . . . . . . . . . . . . . . . . . 718 . 327 118 . . . . . . . . . . Traps 426 | . . . . . 426 . . . . . . . . . . . . . . . . . . . . . . . . . . . . . Seismic 1310 | 6 1049 255 . . . . . . . . . . . . . . . . . . . . . . . . . . . . . . . . Jamming 9978 | . . . . . . 462 . 371 59 943 194 584 . . . . . . . . 1743 639 511 2009 527 293 807 331 398 107 . . . . Robot Analysis Total 2 | . 1 . . . . . . . . . . . 1 . . . . . . . . . . . . . . . . . . . . . Derelict Logs Recovered 3 | . . 1 . 2 . . . . . . . . . . . . . . . . . . . . . . . . . . . . . . Drone Launches 3 | . . . . . . . . . . . . . . . . . . . . . . . . . . . . . . . . . . 3 Drone Recoveries 2 | . . . . . . . . . . . . . . . . . . . . . . . . . . . . . . . . . . 2 Exploration | -11 -10 -10 -10 -9 -8 -8 -8 -8 -7 -7 -7 -7 -6 -6 -6 -6 -6 -6 -6 -6 -5 -5 -4 -4 -4 -4 -3 -3 -2 -2 -2 -2 -1 -1 ------------- Run | Yrd Mat Min Exi Min Mat Gar Mat Gar Fac Gar Fac Gar Fac Was Fac Ext Cet Arc Hub Gar Fac Gar Fac Gar Fac Gar Res Gar Res Gar Res Gar Acc Com Turns Passed 26736 | 81 1049 737 376 764 1415 1806 88 1300 59 1468 194 1659 849 49 239 676 433 1074 585 455 2390 670 511 2014 615 714 927 331 398 458 566 455 695 636 Spaces Moved 21534 | 54 726 549 284 554 569 1176 58 755 49 797 141 520 523 98 362 576 224 435 720 466 2275 837 1061 1564 302 667 987 385 366 597 872 367 823 795 Core 19 | 11 . . . . 6 . . . . . . . 1 . . . . 1 . . . . . . . . . . . . . . . . Treads 300 | . . . . . 15 . . . . . . 22 . . . . 1 . . . . . . 178 84 . . . . . . . . . Legs 15 | . . . . . 15 . . . . . . . . . . . . . . . . . . . . . . . . . . . . . Wheels 6822 | 43 726 549 284 554 533 1176 58 755 49 797 141 316 107 . . . . . . . . . . 613 121 . . . . . . . . . Hover 6253 | . . . . . . . . . . . . 182 103 . . . . . . . . . . 12 97 667 987 385 366 597 872 367 823 795 Flight 8125 | . . . . . . . . . . . . . 312 98 362 576 223 434 720 466 2275 837 1061 761 . . . . . . . . . . Fastest Speed 33 | 50 95 125 125 125 115 115 115 115 115 115 130 130 50 50 50 50 50 50 50 50 37 37 37 37 43 40 40 40 37 37 37 40 40 33 Average Speed 77 | 73 106 125 125 125 154 116 115 115 115 126 130 251 138 50 50 50 67 51 50 50 49 38 39 89 149 46 44 40 37 37 37 69 40 37 Slowest Speed 850 | 80 125 125 125 125 650 145 115 145 115 145 130 560 850 50 50 50 160 750 150 50 50 42 42 250 250 111 103 40 37 37 40 124 40 41 Overloaded Moves . | . . . . . . . . . . . . . . . . . . . . . . . . . . . . . . . . . . . Propulsion Burnouts . | . . . . . . . . . . . . . . . . . . . . . . . . . . . . . . . . . . . Robots Hopped 40 | . . . . . . . . . . . . . 3 . 3 . . . 18 . 10 5 1 . . . . . . . . . . . Potential Cave-ins 2 | . . . . . . . . . . . . . . . . . . . . . . . . . . . . . . . . . 2 . Cave-ins Triggered 1 | . . . . . . . . . . . . . . . . . . . . . . . . . . . . . . . . . 1 . Exploration Rate (%) 48 | 3 74 97 70 73 49 97 7 92 2 79 7 47 12 93 11 62 66 98 79 57 36 46 23 91 8 43 25 40 13 66 23 50 23 26 Regions Visited 34 Branch Regions 8 Pre-discovered Areas 6 | . . 2 1 1 2 . . . . . . . . . . . . . . . . . . . . . . . . . . . . . Known Exits Taken 12 | . . . . . 1 . 1 . 1 . 1 . . . . . . . 1 . 1 . 1 . 1 . 1 . 1 . 1 . 1 . Unknown Exits Taken 9 | 1 1 1 1 1 . . . . . . . . . . 1 1 1 1 . . . . . . . . . . . . . . . . Scrap Searched 3 | . . 1 . 2 . . . . . . . . . . . . . . . . . . . . . . . . . . . . . . Spaces Dug 276 | . . . . 10 . 19 . 22 . 5 . 27 . . 3 . . . 2 . 24 77 9 43 . 22 . 1 2 . 5 . 4 1 Terrain Destroyed 794 | . . 38 . 19 . 122 . 123 . 84 . 77 . . 3 16 . . 2 7 25 96 9 48 15 62 . 1 2 4 16 6 12 7 Melee 90 | . . . . . . 2 . . . 3 . 2 . . 3 . . . 2 . 24 20 9 20 . 2 . 1 2 . . . . . Projectile 95 | . . . . . . . . . . 15 . 9 . . . . . . . . 1 . . 6 15 4 . . . 4 16 6 12 7 AOE 609 | . . 38 . 19 . 120 . 123 . 66 . 66 . . . 16 . . . 7 . 76 . 22 . 56 . . . . . . . . Terrain Rammed . | . . . . . . . . . . . . . . . . . . . . . . . . . . . . . . . . . . . Walls Destroyed . | . . . . . . . . . . . . . . . . . . . . . . . . . . . . . . . . . . . Machines Disabled . | . . . . . . . . . . . . . . . . . . . . . . . . . . . . . . . . . . . Actions | -11 -10 -10 -10 -9 -8 -8 -8 -8 -7 -7 -7 -7 -6 -6 -6 -6 -6 -6 -6 -6 -5 -5 -4 -4 -4 -4 -3 -3 -2 -2 -2 -2 -1 -1 --------- Run | Yrd Mat Min Exi Min Mat Gar Mat Gar Fac Gar Fac Gar Fac Was Fac Ext Cet Arc Hub Gar Fac Gar Fac Gar Fac Gar Res Gar Res Gar Res Gar Acc Com Total 29777 | 75 918 588 304 617 933 1477 79 1012 51 1077 152 729 629 97 400 912 490 1246 915 663 3449 1082 1124 2060 392 1023 1435 554 612 817 1073 546 1153 1093 Wait 5675 | 3 111 24 10 42 182 75 22 59 . 55 2 69 39 . 12 276 232 768 195 147 1063 136 29 296 2 275 369 134 224 151 104 118 243 208 Move 21433 | 53 725 548 283 553 569 1175 57 754 49 796 140 519 517 97 355 575 223 434 689 465 2257 828 1058 1563 301 666 986 384 365 596 871 366 821 795 Hop 30 | . . . . . . . . . . . . . 3 . 3 . . . 13 . 7 3 1 . . . . . . . . . . . Pick Up 199 | 5 18 . 1 2 25 25 . 7 . 17 2 8 5 . . . . . 1 2 18 4 . 5 10 6 8 5 2 4 7 6 3 3 Fast Attach 151 | 6 2 1 . 4 14 2 . 7 . 6 1 5 9 . 3 2 9 8 1 2 5 3 4 14 9 5 11 1 1 2 7 2 4 1 Attach 76 | . 2 . . . 8 3 . 1 1 11 2 6 4 . . . . . 3 . 3 . . 1 5 5 3 . 2 1 1 3 3 8 Detach 21 | . . . . 1 1 . . . . 4 1 1 1 . . . 1 . 1 . 2 . . . 1 2 1 . . . . . . 4 Swap 245 | . 4 3 2 2 10 15 . 28 1 7 1 13 10 . 2 4 5 3 1 7 8 12 5 18 12 11 5 10 . 7 11 10 3 15 Drop 266 | . 11 2 4 6 19 24 . 12 . 21 2 7 18 . 2 1 7 9 1 2 20 7 5 17 14 2 15 8 1 5 11 5 5 3 Fire 935 | 8 45 9 . 7 104 67 . 41 . 79 . 66 3 . 13 48 13 . 6 8 14 11 1 48 35 43 9 7 7 26 61 34 70 52 Melee 466 | . . . 4 . . 24 . 62 . 46 1 32 19 . 4 6 . 24 3 8 52 59 17 49 3 8 27 5 10 3 . . . . Ram 1 | . . . . . . . . . . . . 1 . . . . . . . . . . . . . . . . . . . . . . Kick . | . . . . . . . . . . . . . . . . . . . . . . . . . . . . . . . . . . . Crush 1 | . . . . . 1 . . . . . . . . . . . . . . . . . . . . . . . . . . . . . Escape Stasis 223 | . . . . . . 56 . 40 . 32 . . . . 6 . . . . 21 . . 4 41 . . . . . 22 . . 1 . Rewire 43 | . . 1 . . . 6 . 1 . 2 . 2 1 . . . . . . 1 . 19 . 7 . . 1 . . . . 2 . . Trap 12 | . . . . . . 5 . . . 1 . . . . . . . . 1 . . . . 1 . . . . . . . . . 4 Miscellaneous . | . . . . . . . . . . . . . . . . . . . . . . . . . . . . . . . . . . . Route ------- -11/Scrapyard -10/Materials (discovered 4 exits: [*Mat x2] / *Min / [*Sub]) -10/Mines (discovered 4 exits: [*Mat x2] / *Exi / [*Sub]) -10/Exiles (discovered 2 exits: *Min x2) -9/Mines (discovered 2 exits: *Mat x2) -8/Materials (discovered 2 exits: *Fac / Gar) -8/Garrison (discovered 4 exits: *Mat x4) -8/Materials -8/Garrison (discovered 3 exits: *Fac x3) -7/Factory (discovered 2 exits: Sto / Gar) -7/Garrison (discovered 3 exits: *Fac x3) -7/Factory -7/Garrison (discovered 3 exits: *Fac x3) -6/Factory (discovered 2 exits: *Fac / [*Low]) -6/Waste -6/Factory -6/Extension (discovered 2 exits: *Fac / *Cet) -6/Cetus (discovered 2 exits: *Fac / [*Arc]) -6/Archives (discovered 3 exits: *Fac / *Hub x2) -6/Hub_04(d) (discovered 4 exits: *Fac x3 / Gar) -6/Garrison (discovered 3 exits: *Fac x3) -5/Factory (discovered 3 exits: *Fac / [*Upp] / Gar) -5/Garrison (discovered 3 exits: *Fac x3) -4/Factory (discovered 2 exits: *Upp / Gar) -4/Garrison (discovered 4 exits: *Fac x4) -4/Factory (discovered 2 exits: Upp / Gar) -4/Garrison (discovered 3 exits: *Res x3) -3/Research (discovered 2 exits: [*Arm] / Gar) -3/Garrison (discovered 3 exits: *Res x3) -2/Research (discovered 2 exits: Acc / Gar) -2/Garrison (discovered 3 exits: *Res x3) -2/Research (discovered 2 exits: [*Tes] / Gar) -2/Garrison (discovered 3 exits: *Acc x3) -1/Access (discovered 2 exits: Sur / *Com) -1/Command 0b10 Command History --------- Turn | Location | Event 2 | -11/Scrapyard | Discovered new exit (range 16) 82 | -11/Scrapyard | Entered Materials 192 | -10/Materials | Discovered new exit (range 12) 309 | -10/Materials | Build established: Mutant 579 | -10/Materials | Discovered new exit (range 9) 722 | -10/Materials | Repaired Lgt. Treads 962 | -10/Materials | Discovered new exit (range 9) 1111 | -10/Materials | Discovered new exit (range 8) 1131 | -10/Materials | Entered Mines 1263 | -10/Mines | Learned location of Storage (-7) 1275 | -10/Mines | Discovered new exit (range 5) 1282 | -10/Mines | Assisted by bots powering up and referring to "LRC-V3" 1364 | -10/Mines | Met a Derelict shopkeep closing up shop 1566 | -10/Mines | Discovered new exit (range 13) 1731 | -10/Mines | Discovered new exit (range 4) 1856 | -10/Mines | Deemed a non-threat by the Exiles lab entrance 1856 | -10/Mines | Discovered new exit (range 5) 1868 | -10/Mines | Entered Exiles 1868 | -10/Exiles | Accompanied by 3 allies 1885 | -10/Exiles | Discovered new exit (range 15) 1900 | -10/Exiles | Met 8R-AWN 1923 | -10/Exiles | Met EX-HEX 1970 | -10/Exiles | Met EX-DEC 2009 | -10/Exiles | Learned location of Zion (-6) 2034 | -10/Exiles | Met EX-BIN 2057 | -10/Exiles | Aligned with FarCom system 2059 | -10/Exiles | Given EX-Vault access code 2087 | -10/Exiles | Opened EX-Vault 2101 | -10/Exiles | Found Flying Fortress v7 2128 | -10/Exiles | Warned to stay clear of 0b10 Research branches 2222 | -10/Exiles | Discovered new exit (range 14) 2244 | -10/Exiles | Left Exiles lab with Flying Fortress v7 2244 | -10/Exiles | Entered Mines 2244 | -9/Mines | Accompanied by 3 allies 2272 | -9/Mines | Found the Drone Emporium 2286 | -9/Mines | Found Prototype Device 2286 | -9/Mines | Identified Thief Drone Bay 2336 | -9/Mines | Received a Rocket Launcher from a helpful Derelict 2459 | -9/Mines | Found a damaged Exp. Sensor Array with a note attached 2462 | -9/Mines | Found Prototype Device 2462 | -9/Mines | Identified Exp. Sensor Array 2542 | -9/Mines | Discovered new exit (range 5) 2747 | -9/Mines | Discovered new exit (range 12) 3008 | -9/Mines | Entered Materials 3008 | -8/Materials | Accompanied by 3 allies 3008 | -8/Materials | Evolved 4 slots: Propulsion x2, Utility x2 3154 | -8/Materials | Lost 3 allies 3480 | -8/Materials | Lost 4 parts (2n1u1w) 3804 | -8/Materials | Repaired Lgt. Armor Plating 4065 | -8/Materials | Repaired Autogun+ 4081 | -8/Materials | Discovered new exit (range 11) 4290 | -8/Materials | Learned location of Recycling (-7) 4350 | -8/Materials | Learned location of 1 exit from Recycling 4423 | -8/Materials | Identified exit to Garrison 4423 | -8/Materials | Entered Garrison 4745 | -8/Garrison | Triggered checkpoint 4766 | -8/Garrison | Triggered checkpoint 5092 | -8/Garrison | Garrison Relay disabled 5148 | -8/Garrison | Phase Generator disabled 5165 | -8/Garrison | Discovered new exit (range 13) 5243 | -8/Garrison | Garrison Relay disabled 5251 | -8/Garrison | Core integrity fell below 50% 5509 | -8/Garrison | Discovered new exit (range 10) 5545 | -8/Garrison | Triggered checkpoint 5601 | -8/Garrison | Discovered new exit (range 5) 5663 | -8/Garrison | Triggered checkpoint 5697 | -8/Garrison | Discovered new exit (range 15) 5791 | -8/Garrison | Triggered checkpoint 5991 | -8/Garrison | Installed Relay Interface Framework 6007 | -8/Garrison | Learned Materials security intel 6042 | -8/Garrison | Garrison Relay disabled 6229 | -8/Garrison | Entered Materials 6229 | -8/Materials | Accompanied by 2 allies 6265 | -8/Materials | Identified exit to Garrison 6317 | -8/Materials | Entered Garrison 6317 | -8/Garrison | Accompanied by 4 allies 6500 | -8/Garrison | Garrison Relay disabled 6545 | -8/Garrison | Triggered checkpoint 6545 | -8/Garrison | Triggered checkpoint 6571 | -8/Garrison | Triggered checkpoint 6663 | -8/Garrison | P-60 Hacker assimilated allied Defender 3a 6668 | -8/Garrison | P-60 Hacker assimilated allied GR-DS6(g) 6694 | -8/Garrison | Lost 3 allies 6697 | -8/Garrison | Destroyed 7 combat bots 6745 | -8/Garrison | Discovered new exit (range 14) 6821 | -8/Garrison | Triggered checkpoint 6844 | -8/Garrison | Expanded RIF knowledge: Program Shield 6862 | -8/Garrison | Garrison Relay disabled 6877 | -8/Garrison | Triggered checkpoint 7085 | -8/Garrison | Triggered checkpoint 7173 | -8/Garrison | Build established: Bothacker-Mutant 7261 | -8/Garrison | Discovered new exit (range 11) 7434 | -8/Garrison | Garrison Relay disabled 7443 | -8/Garrison | Triggered checkpoint 7554 | -8/Garrison | Build established: Trapper-Mutant 7602 | -8/Garrison | Discovered new exit (range 10) 7617 | -8/Garrison | Entered Factory 7617 | -7/Factory | Evolved 2 slots: Utility x2 7618 | -7/Factory | Identified exit to Storage 7676 | -7/Factory | Identified exit to Garrison 7676 | -7/Factory | Entered Garrison 7796 | -7/Garrison | Triggered checkpoint 7930 | -7/Garrison | Garrison Relay disabled 8029 | -7/Garrison | H-XX Assembler disabled 8233 | -7/Garrison | Triggered checkpoint 8233 | -7/Garrison | Triggered checkpoint 8279 | -7/Garrison | Destroyed 8 combat bots 8283 | -7/Garrison | Lost 3 parts (3u) 8441 | -7/Garrison | Build established: Bothacker-Mutant 8490 | -7/Garrison | Discovered new exit (range 11) 8588 | -7/Garrison | Triggered checkpoint 8677 | -7/Garrison | Triggered checkpoint 8760 | -7/Garrison | Expanded RIF knowledge: Alert ID Control 8817 | -7/Garrison | Garrison Relay disabled 8850 | -7/Garrison | Discovered new exit (range 11) 8916 | -7/Garrison | Triggered checkpoint 9027 | -7/Garrison | Rescued a captive Derelict 9027 | -7/Garrison | Rescued a captive Derelict 9121 | -7/Garrison | Discovered new exit (range 64) 9121 | -7/Garrison | Discovered new exit (range 12) 9121 | -7/Garrison | Discovered new exit (range 37) 9144 | -7/Garrison | Entered Factory 9144 | -7/Factory | Accompanied by 2 allies 9327 | -7/Factory | Identified exit to Garrison 9338 | -7/Factory | Entered Garrison 9338 | -7/Garrison | Accompanied by 2 allies 9568 | -7/Garrison | Garrison Relay disabled 9953 | -7/Garrison | Lost 3 parts (1n2u) 10036 | -7/Garrison | Triggered checkpoint 10037 | -7/Garrison | Core integrity fell below 50% 10380 | -7/Garrison | Triggered checkpoint 10505 | -7/Garrison | Expanded RIF knowledge: Autoassimilate 10597 | -7/Garrison | Discovered new exit (range 18) 10597 | -7/Garrison | Discovered new exit (range 65) 10597 | -7/Garrison | Discovered new exit (range 91) 10630 | -7/Garrison | Garrison Relay disabled 10932 | -7/Garrison | Build established: Botlord-Mutant 10997 | -7/Garrison | Entered Factory 10997 | -6/Factory | Accompanied by 1 ally 10997 | -6/Factory | Evolved 2 slots: Utility x2 11409 | -6/Factory | Build established: Bothacker-Assassin 11772 | -6/Factory | Discovered new exit (range 6) 11795 | -6/Factory | Discovered new exit (range 4) 11846 | -6/Factory | Sucked down chute 11846 | -6/Factory | Entered Waste 11857 | -6/Waste | Spotted C-40 Crusher 11860 | -6/Waste | Spotted C-40 Crusher 11861 | -6/Waste | EMP discharged 11870 | -6/Waste | Spotted C-40 Crusher 11878 | -6/Waste | Spotted C-40 Crusher 11880 | -6/Waste | Spotted C-40 Crusher 11888 | -6/Waste | Spotted C-40 Crusher 11889 | -6/Waste | Discovered new exit (range 13) 11895 | -6/Waste | Entered Factory 11992 | -6/Factory | Repaired Hrd. Heavy Armor Plating 12014 | -6/Factory | Build established: Bothacker-Mutant 12117 | -6/Factory | Discovered new exit (range 13) 12134 | -6/Factory | Entered Extension 12134 | -6/Extension | Accompanied by 1 ally 12180 | -6/Extension | Rescued A7 12281 | -6/Extension | Rescued a captive Derelict 12294 | -6/Extension | Rescued a captive Derelict 12296 | -6/Extension | Rescued a captive Derelict 12515 | -6/Extension | Build established: Commander-Mutant 12582 | -6/Extension | Spotted B-75 Beast 12615 | -6/Extension | Allies destroyed B-75 Beast 12618 | -6/Extension | Spotted B-75 Beast 12639 | -6/Extension | Allies destroyed B-75 Beast 12645 | -6/Extension | Lost 3 allies 12703 | -6/Extension | Discovered new exit (range 16) 12703 | -6/Extension | Discovered new exit (range 15) 12810 | -6/Extension | Entered Cetus 12810 | -6/Cetus | Accompanied by 11 allies (A7) 12815 | -6/Cetus | Acquired a Cetus Manufacturing Module code from A7 12831 | -6/Cetus | Spotted Cetus Guard 12831 | -6/Cetus | Spotted Cetus Guard 12832 | -6/Cetus | Spotted Cetus Guard 12832 | -6/Cetus | Spotted Cetus Guard 12832 | -6/Cetus | Allies destroyed Cetus Guard 12833 | -6/Cetus | Allies destroyed Cetus Guard 12833 | -6/Cetus | Allies destroyed Cetus Guard 12836 | -6/Cetus | Allies destroyed Cetus Guard 12922 | -6/Cetus | Escorted A7 to Cetus Mainframe 12924 | -6/Cetus | Build established: Bothacker-Mutant 12930 | -6/Cetus | Started Cetus Manufacturing Module 12936 | -6/Cetus | Discovered new exit (range 15) 12955 | -6/Cetus | Manufactured an Enhanced Grunt 12980 | -6/Cetus | Manufactured an Enhanced Grunt 13005 | -6/Cetus | Manufactured an Enhanced Grunt 13030 | -6/Cetus | Manufactured an Enhanced Grunt 13055 | -6/Cetus | Manufactured an Enhanced Grunt 13073 | -6/Cetus | Spotted Cetus Guard 13073 | -6/Cetus | Spotted Cetus Guard 13103 | -6/Cetus | Discovered new exit (range 15) 13106 | -6/Cetus | Met Revision 17 13243 | -6/Cetus | Build established: Commander-Mutant 13243 | -6/Cetus | Entered Archives 13243 | -6/Archives | Accompanied by 16 allies (A7) 13248 | -6/Archives | Received a hacking code to weaken MAIN.C 13320 | -6/Archives | Discovered new exit (range 16) 13390 | -6/Archives | Discovered new exit (range 16) 13489 | -6/Archives | Discovered new exit (range 16) 14317 | -6/Archives | Entered Hub_04(d) 14317 | -6/Hub_04(d) | Accompanied by 10 allies 14394 | -6/Hub_04(d) | Network Hub disabled 14455 | -6/Hub_04(d) | Discovered new exit (range 18) 14518 | -6/Hub_04(d) | Watched by a mysterious "MATRIX" hacker. 14518 | -6/Hub_04(d) | Network Hub disabled 14529 | -6/Hub_04(d) | Lost 5 allies 14547 | -6/Hub_04(d) | Network Hub disabled 14599 | -6/Hub_04(d) | Discovered new exit (range 7) 14773 | -6/Hub_04(d) | Build established: Trapper-Mutant 14824 | -6/Hub_04(d) | Spotted B-75 Beast 14866 | -6/Hub_04(d) | Spotted Lightning 14868 | -6/Hub_04(d) | Spotted Lightning 14869 | -6/Hub_04(d) | Spotted Lightning 14870 | -6/Hub_04(d) | Discovered new exit (range 12) 14893 | -6/Hub_04(d) | Network Hub disabled 14902 | -6/Hub_04(d) | Identified exit to Garrison 14902 | -6/Hub_04(d) | Entered Garrison 14909 | -6/Garrison | Spotted B-75 Beast 14910 | -6/Garrison | Spotted B-86 Titan 14912 | -6/Garrison | Rewired B-90 Cyclops 14988 | -6/Garrison | Triggered checkpoint 15007 | -6/Garrison | Expanded RIF knowledge: Autoassimilate 15031 | -6/Garrison | Discovered new exit (range 15) 15058 | -6/Garrison | Triggered checkpoint 15090 | -6/Garrison | Garrison Relay disabled 15156 | -6/Garrison | Triggered checkpoint 15269 | -6/Garrison | Discovered new exit (range 8) 15280 | -6/Garrison | Discovered new exit (range 63) 15280 | -6/Garrison | Discovered new exit (range 52) 15280 | -6/Garrison | Discovered new exit (range 6) 15297 | -6/Garrison | Garrison Relay disabled 15308 | -6/Garrison | Triggered checkpoint 15357 | -6/Garrison | Entered Factory 15357 | -5/Factory | Accompanied by 2 allies 15357 | -5/Factory | Evolved 2 slots: Power x1, Propulsion x1 15368 | -5/Factory | Discovered new exit (range 5) 15402 | -5/Factory | Central database locked down 15437 | -5/Factory | Build established: Bothacker-Mutant 15573 | -5/Factory | Spotted B-75 Beast 15612 | -5/Factory | Destroyed B-75 Beast 15696 | -5/Factory | Repaired Centrium Medium Armor Plating 15708 | -5/Factory | Noticed a derelict Sapper rigging charges 17174 | -5/Factory | Found Powered Armor 17364 | -5/Factory | Discovered new exit (range 5) 17457 | -5/Factory | Search patrols dispatched 17477 | -5/Factory | Repaired Broken Imp. Transmission Jammer 17704 | -5/Factory | Identified exit to Garrison 17747 | -5/Factory | Entered Garrison 17747 | -5/Garrison | Accompanied by 2 allies 17813 | -5/Garrison | Found Relay Coupler [Proto] 17815 | -5/Garrison | Found Relay Coupler [Proto] 17817 | -5/Garrison | Found Relay Coupler [Proto] 17935 | -5/Garrison | Triggered checkpoint 17967 | -5/Garrison | Triggered checkpoint 18000 | -5/Garrison | Garrison Relay disabled 18007 | -5/Garrison | Lost 3 allies 18007 | -5/Garrison | Discovered new exit (range 65) 18007 | -5/Garrison | Discovered new exit (range 69) 18007 | -5/Garrison | Discovered new exit (range 81) 18147 | -5/Garrison | Triggered checkpoint 18159 | -5/Garrison | Garrison Relay disabled 18207 | -5/Garrison | Triggered checkpoint 18221 | -5/Garrison | Triggered checkpoint 18315 | -5/Garrison | Destroyed 7 combat bots 18379 | -5/Garrison | Expanded RIF knowledge: Signal Jamming 18386 | -5/Garrison | Build established: Botlord-Mutant 18417 | -5/Garrison | Entered Factory 18417 | -4/Factory | Accompanied by 2 allies 18417 | -4/Factory | Evolved 2 slots: Propulsion x1, Utility x1 18471 | -4/Factory | Discovered new exit (range 4) 18817 | -4/Factory | Identified exit to Garrison 18928 | -4/Factory | Entered Garrison 18937 | -4/Garrison | Discovered new exit (range 9) 19092 | -4/Garrison | Triggered checkpoint 19102 | -4/Garrison | Triggered checkpoint 19116 | -4/Garrison | Discovered new exit (range 11) 19900 | -4/Garrison | Expanded RIF knowledge: Structural Interface 19928 | -4/Garrison | Garrison Relay disabled 20001 | -4/Garrison | Garrison Relay disabled 20048 | -4/Garrison | Discovered new exit (range 5) 20143 | -4/Garrison | Triggered checkpoint 20200 | -4/Garrison | Triggered checkpoint 20232 | -4/Garrison | Garrison Relay disabled 20280 | -4/Garrison | Discovered new exit (range 14) 20355 | -4/Garrison | Learned Factory security intel 20414 | -4/Garrison | Triggered checkpoint 20452 | -4/Garrison | Triggered checkpoint 20474 | -4/Garrison | Garrison Relay disabled 20562 | -4/Garrison | Triggered checkpoint 20616 | -4/Garrison | Triggered checkpoint 20623 | -4/Garrison | Garrison Relay disabled 20671 | -4/Garrison | Expanded RIF knowledge: Watcher Feeds 20918 | -4/Garrison | Triggered checkpoint 20942 | -4/Garrison | Entered Factory 20942 | -4/Factory | Accompanied by 5 allies 21108 | -4/Factory | Unchained authorized (BL-1NK) 21148 | -4/Factory | Exiles provided nearest exit location to -4/Upper Caves 21396 | -4/Factory | Allies destroyed BL-1NK 21431 | -4/Factory | Lost 3 allies 21538 | -4/Factory | Identified exit to Garrison 21557 | -4/Factory | Entered Garrison 21570 | -4/Garrison | Garrison Relay disabled 21602 | -4/Garrison | Discovered new exit (range 86) 21602 | -4/Garrison | Discovered new exit (range 85) 21602 | -4/Garrison | Discovered new exit (range 58) 21619 | -4/Garrison | Triggered checkpoint 21627 | -4/Garrison | Garrison Relay disabled 21643 | -4/Garrison | Triggered checkpoint 21840 | -4/Garrison | Spotted B-86 Titan 21949 | -4/Garrison | Lost 3 parts (1p2u) 21966 | -4/Garrison | Destroyed B-86 Titan 22085 | -4/Garrison | Triggered checkpoint 22087 | -4/Garrison | Triggered checkpoint 22101 | -4/Garrison | Garrison Relay disabled 22107 | -4/Garrison | Triggered checkpoint 22208 | -4/Garrison | Expanded RIF knowledge: Patrol Navigation 22271 | -4/Garrison | Entered Research 22271 | -3/Research | Evolved 2 slots: Utility x2 22367 | -3/Research | Discovered new exit (range 27) 22445 | -3/Research | Found Exp. Targeting Computer 22447 | -3/Research | Found Hellfire Missile Launcher 22471 | -3/Research | Revision forces began assault on 0b10 22558 | -3/Research | Met up with Revision 17++ 22600 | -3/Research | Identified exit to Garrison 22765 | -3/Research | Repaired Broken Cmb. Linear Gravjet+ 22836 | -3/Research | Repaired Antigrav Array+? 22959 | -3/Research | Repaired Centrium Medium Armor Plating? 22971 | -3/Research | Research terminal network offline 23046 | -3/Research | Repaired Gravity Neutralizer? 23122 | -3/Research | Murdered Revision 17++ 23198 | -3/Research | Entered Garrison 23198 | -3/Garrison | Accompanied by 4 allies 23213 | -3/Garrison | Garrison Relay disabled 23222 | -3/Garrison | Triggered checkpoint 23237 | -3/Garrison | Expanded RIF knowledge: Coupler Efficiency 23461 | -3/Garrison | Discovered new exit (range 19) 23461 | -3/Garrison | Discovered new exit (range 48) 23461 | -3/Garrison | Discovered new exit (range 63) 23462 | -3/Garrison | Triggered checkpoint 23466 | -3/Garrison | Triggered checkpoint 23468 | -3/Garrison | Triggered checkpoint 23485 | -3/Garrison | Expanded RIF knowledge: Coupler Efficiency 23490 | -3/Garrison | Garrison Relay disabled 23499 | -3/Garrison | Lost 3 allies 23500 | -3/Garrison | Triggered checkpoint 23529 | -3/Garrison | Entered Research 23529 | -2/Research | Accompanied by 1 ally 23529 | -2/Research | Evolved 2 slots: Propulsion x1, Utility x1 23542 | -2/Research | Discovered new exit (range 96) 23586 | -2/Research | Identified exit to Garrison 23927 | -2/Research | Entered Garrison 23927 | -2/Garrison | Accompanied by 3 allies 23978 | -2/Garrison | Triggered checkpoint 23989 | -2/Garrison | Garrison Relay disabled 24097 | -2/Garrison | Spotted B-90 Cyclops 24097 | -2/Garrison | Assimilated Cyclops 9a with formatsys_high 24103 | -2/Garrison | Triggered checkpoint 24115 | -2/Garrison | Triggered checkpoint 24135 | -2/Garrison | Triggered checkpoint 24170 | -2/Garrison | Lost 4 allies 24174 | -2/Garrison | Expanded RIF knowledge: Crosswire 24199 | -2/Garrison | Discovered new exit (range 2) 24205 | -2/Garrison | Triggered checkpoint 24209 | -2/Garrison | Garrison Relay disabled 24241 | -2/Garrison | Triggered checkpoint 24277 | -2/Garrison | Discovered new exit (range 14) 24279 | -2/Garrison | Discovered new exit (range 12) 24279 | -2/Garrison | Discovered new exit (range 55) 24279 | -2/Garrison | Discovered new exit (range 40) 24279 | -2/Garrison | Learned Research security intel 24288 | -2/Garrison | Garrison Relay disabled 24301 | -2/Garrison | Triggered checkpoint 24385 | -2/Garrison | Entered Research 24385 | -2/Research | Accompanied by 8 allies 24441 | -2/Research | Found Prototype Processor 24441 | -2/Research | Identified Spectral Analyzer 24492 | -2/Research | Targeted by mysterious "MATRIX" hacker. 24545 | -2/Research | Spotted B-90 Cyclops 24737 | -2/Research | Spotted B-90 Cyclops 24750 | -2/Research | Destroyed B-90 Cyclops 24769 | -2/Research | Found Adv. Powered Armor 24770 | -2/Research | Found Adv. Powered Armor 24781 | -2/Research | Found Adv. Powered Armor 24831 | -2/Research | Lost 4 allies 24832 | -2/Research | Discovered new exit (range 9) 24901 | -2/Research | Identified exit to Garrison 24951 | -2/Research | Entered Garrison 24951 | -2/Garrison | Accompanied by 11 allies 24962 | -2/Garrison | Expanded RIF knowledge: Hotswap 24963 | -2/Garrison | Triggered checkpoint 24971 | -2/Garrison | Discovered new exit (range 64) 24971 | -2/Garrison | Discovered new exit (range 76) 24971 | -2/Garrison | Discovered new exit (range 90) 24972 | -2/Garrison | Garrison Relay disabled 25124 | -2/Garrison | Lost 3 allies 25182 | -2/Garrison | Triggered checkpoint 25185 | -2/Garrison | Triggered checkpoint 25185 | -2/Garrison | Spotted B-90 Cyclops 25193 | -2/Garrison | Triggered checkpoint 25209 | -2/Garrison | Triggered checkpoint 25240 | -2/Garrison | Lost 11 allies 25245 | -2/Garrison | Triggered checkpoint 25313 | -2/Garrison | Garrison Relay disabled 25317 | -2/Garrison | Lost 5 allies 25406 | -2/Garrison | Entered Access 25406 | -1/Access | Accompanied by 10 allies 25406 | -1/Access | Evolved 2 slots: Utility x2 25442 | -1/Access | Crushed by falling debris 25522 | -1/Access | Garrison activated, responded to threat 25631 | -1/Access | Identified exit to Surface 25643 | -1/Access | Lost 5 allies 25720 | -1/Access | Central database locked down 25736 | -1/Access | Identified exit to Command 26101 | -1/Access | Entered Command 26101 | -1/Command | Accompanied by 11 allies 26287 | -1/Command | Lost 6 allies 26301 | -1/Command | Assimilated ARC 10a with formatsys_deep 26350 | -1/Command | Spotted M Guard 26351 | -1/Command | Spotted M Guard 26352 | -1/Command | Spotted Combat Programmer 26352 | -1/Command | Spotted Combat Programmer 26376 | -1/Command | Destroyed Combat Programmer 26406 | -1/Command | Assimilated M Guard with formatsys_high 26407 | -1/Command | Assimilated M Guard with formatsys_high 26408 | -1/Command | Allies destroyed Combat Programmer 26451 | -1/Command | Spotted B-99 Colossus 26451 | -1/Command | Found Exp. Core Analyzer 26575 | -1/Command | Met MAIN.C 26696 | -1/Command | Allies destroyed MAIN.C Shell 26698 | -1/Command | MAIN.C activated Command garrisons 26716 | -1/Command | Allies destroyed MAIN.C 26730 | -1/Command | Phase Generator disabled 26737 | -1/Command | Interfaced with 0b10 Conduit 26737 | *** | Assimilated 0b10! Last Messages --------------- 26716_ MAIN.C: "I hope you know you're still going to DIE HERE WITH ME!" 26716_ MAIN.C destroyed. 26717_ The unstable cave ceiling collapses. 26719_ Acquired 23 matter. 26719_ K-01 Serf collects debris. 26720_ The unstable cave ceiling collapses. 26720_ RIF reveals location of phase wall. 26721_ RIF automatically installing new Enforcer 10i system data, ETC: 6. 26721_ RIF reveals location of phase wall. 26721_ I-47 Archangel distress signal jammed. 26722_ RIF automatically installing new Enforcer 10j system data, ETC: 6. 26722_ The unstable cave ceiling collapses. 26722_ I-47 Archangel distress signal jammed. 26722_ S-43 Plague destroyed. 26724_ I-47 Archangel distress signal jammed. 26725_ The unstable cave ceiling collapses. 26725_ I-47 Archangel destroyed. 26725_ Slug penetrates Warlord 4Z-XS3. 26737_ Interfacing with system... [Achievement: MAIN.CPP] Map ----- +----------------------------------------------------+ | ################################################## | | ################################################## | | ################################################## | | ################################################## | | ################################################## | | ################################################## | | ################################################## | | ################################################## | | ################################################## | | ################################################## | | ################################################## | | ################################################## | | ################################################## | | ################################################## | | ###############""""""" """" ############## | | ###############"" "" ############## | | ###############""""" "" ############## | | ###############""""""""""" + | | ###############" " """ ; | | ###############"" """""" ; | | ###############"" """""" ############## | | ############### " """""" ############## | | ############### " "" ############## | | ############### " " ""############## | | ###############""""""""" """""""############## | | ###############"" @ """""""""############## | | ############### """""""""""############## | | ############### " " " " ############## | | ############### " " " " ############## | | " " " """" " ############## | | """ " " """" ############## | | " " " " ############## | | ###+########### """""""""" " ############## | | ######## " """ " """"""""############## | | ######## """ " " " ############## | | ########################################### | | ########################################### | | ########################################### | | ################################################## | | "########################################## | | ########################################### | | ########################################### | | # ########################################### | | # #+########################################### | | # # ######################################### | | # # ######################################### | | # # ######################################### | | # # ######################################### | | # # ######################################### | | # # ######################################### | +----------------------------------------------------+ Best States ------------- Heat Dissipation 83 Coolant Potential 100 Energy Generation 48 Energy Capacity 565 Matter Stores 300 Matter Capacity 300 Sight Range 24 Robot Scan Range 20 Terrain Scan Density 10 Jamming Range 16 Additional Mass Support 20 Corruption Containment 8 Corruption Block 38 Armor Coverage 800 Resistance: TH 10 Utility Shielding 90 Evasion (%) 62 Targeting Accuracy 5 Core Analysis 8 Recoil Reduction 4 Offensive Hacking 22 Defensive Hacking 24 Relay Coupler Types 9 Relay Coupler Value 196 Trap Extractor Capacity 4 Item Schematics ----------------- Arm. Huge Wheel | -8/Materials | Scanalyzed Lrn. Proton Cannon | -6/Extension | Hacked Triangulator | -6/Extension | Hacked Centrium Medium Armor Plating | -5/Factory | Scanalyzed Adv. System Restoration Module | -5/Factory | Scanalyzed Graphene Brace | -5/Factory | Scanalyzed Hyp. Gauss Rifle | -5/Factory | Scanalyzed Cmb. Linear Gravjet | -3/Research | Scanalyzed Hcp. Storage Unit | -3/Research | Scanalyzed Robot Schematics ------------------ None Fabricated ------------ Nothing Repaired ---------- Lgt. Treads | 26% | -10/Materials Lgt. Armor Plating | 7% | -8/Materials Autogun | 26% | -8/Materials Hrd. Heavy Armor Plating | 61% | -6/Factory Centrium Medium Armor Plating | 51% | -5/Factory Imp. Transmission Jammer | 36% | -5/Factory | Broken Cmb. Linear Gravjet | 56% | -3/Research | Broken Antigrav Array | 13% | -3/Research Centrium Medium Armor Plating | 5% | -3/Research Gravity Neutralizer | 24% | -3/Research Studied --------- Autogun | -8/Materials | Hacked Hvy. Assault Rifle | -8/Materials | Hacked Katana | -8/Materials | Hacked Hvy. Assault Cannon | -7/Factory | Hacked Hyp. Gauss Rifle | -5/Factory | Hacked Remote Datajack | -5/Factory | Hacked Enh. Nova Cannon | -3/Research | Hacked Cmb. Linear Gravjet | -3/Research | Hacked Antigrav Array | -3/Research | Hacked Quantum Reactor | -3/Research | Hacked Adv. Remote Datajack | -3/Research | Hacked Lgt. Quantum Reactor | -3/Research | Hacked Lgt. Antimatter Reactor | -3/Research | Hacked Power Sword | -3/Research | Hacked Enh. Hardcell Cannon | -3/Research | Hacked Antigrav System | -3/Research | Hacked Imp. Linear Gravjet | -1/Access | Hacked Alien Tech Used ----------------- None Achievements -------------- MAIN.CPP RIFT Wizard Challenges ------------ None Game ------ Seed ControlUtilityKatana Manual? 0 Play Time 05:39:33 Cumulative 1347.1 hours Start 2026.02.08 @ 23:49:41 End 2026.02.09 @ 05:52:33 Sessions 1 Manual Loads 0 Difficulty Rogue Special Mode None Game No. 450 Rogue 445 Adventurer 4 Explorer 1 Win Type 4 Total 34 Types 16/5/2/2/1/2/2/0/2/2 Lore% 97 Gallery% 93 Achievement% 85 Wizard Run 0 Options --------- Layout 0 ASCII 0 Keyboard 0 Movement Numpad Keybinds 0 Fullscreen 2 Font 18/SmallcapsGlow Map View 76x50 Zoom Use 0% Tactical HUD 1 Map Filters NONE Filters NONE Steam 1 RUN: f14c5218-ca0d-45ad-bec5-0ea4de64c4d6